Workbook

Sheet Title sheet
C4: XXXXXXXXXXX
D7: Interventions to Support Workplace Health in Employees with Disabilities and Long-Term Conditions - Cost Calculator
D12: About the model:
D14: Black text | F14: Indicates input cells. These can be changed as appropriate to your requirements.
D16: Red text | F16: Indicates a formula cell. These are dependent upon other cells, and should not be changed. There are no password or protected sheets.
D18: Comments | F18: A red mark in the corner of a cell indicates a comment. To view the comment, hover the pointer over the cell.
D21: This cost calculator is intended for use by decision makers to determine if a work place health intervention for employees with long-term conditions is cost-effective in their organisation. This model does not take into account non-quantitative factors and is intended to supplement decision making. The values included in the 'base case' are there as an example of the type of input that could be used and are included as a starting point. Each input in the base case has a comment in the cell to indicate the input source. The base case data is intended as a guide only and this information will differ by organisation. It is intended that the model user will input data specific to their own organisation (or the organisation where the intervention will be implemented). The cost calculator should be used alongside the associated economic model report which is available on the NICE website.
D26: To use the model: 1. Click the 'Inputs' button and enter your own data into the input cells (green cells); 1.a) Select the time horizon from the drop down box; 1.b) Select the method of applying effectiveness data from the drop down box (if your time horizon is more than 1 year); 2. Select which categories you would like to include using the tick boxes in the 'Inputs' sheet; 3. Click the 'Results' button to view the results of the cost calculator; 4. If you are unsure of any of the inputs you have entered click the 'Sensitivity Analysis' tab and/or the 'Slider Chart' tab to see what effect varying each input would have on the results.

Sheet Inputs
D10: Select number of years | AI10: Slider chart | AO10: Sensitivity analysis
AJ11: LIVE | AK11: Spin button
D12: Effectiveness input method | AI12: No of employees | AJ12: =IF('Base case'!$E$126=1,Inputs!AK12,Inputs!E14) -> 30 | AK12: 30 | AR12: Scenario analysis - baselien absenteeism
AO13: Cost of int. | AP13: ='Base case'!G19 -> -12971.49956 | AR13: No. of days | AS13: ='Base case'!G19 -> -12971.49956
D14: Number of employees | E14: 30 | AI14: Cost of intervention per person | AJ14: =IF('Base case'!$E$126=1,Inputs!AK14,Inputs!H17) -> 311 | AK14: 311 | AO14: 0 | AP14: -22301.49956 | AR14: 4.78 | AS14: -12971.49956 | BA14: Drop down effectiveness options
AO15: 50 | AP15: -20801.49956 | AR15: 7.58 | AS15: -17343.22569 | BH15: Calculations
H16: Year 1 | I16: Year 2 | J16: Year 3 | K16: Year 4 | L16: Year 5 | AL16: Spin button default | AO16: 100 | AP16: -19301.49956 | AR16: 12.5 | AS16: -25024.97304 | BA16: Option 1 - same effectiveness each year
D17: Annual discount rate | E17: 0.035 | G17: Cost of intervention per person | H17: 311 | I17: 0 | J17: 0 | K17: 0 | L17: 0 | AI17: Number of days lost per person | AJ17: =IF('Base case'!$E$126=1,Inputs!AK17,Inputs!E20) -> 4.78 | AK17: 4.78 | AO17: 150 | AP17: -17801.49956 | AR17: 14.1 | AS17: -27523.10226 | BH17: Calculations - before intervention | BO17: Calculations - after intervention | BW17: Four way | CC17: Absenteeism | DE17: Productivity | EE17: Staff turnover
AI18: Cost of absenteeism per day | AJ18: =IF('Base case'!$E$126=1,Inputs!AK18,Inputs!E21) -> 148.6981678 | AK18: 148.6981678 | AO18: 200 | AP18: -16301.49956 | AR18: 16.6 | AS18: -31426.42917 | BB18: Year 1 | BC18: Year 2 | BD18: Year 3 | BE18: Year 4 | BF18: Year 5 | EM18: =EF23 -> 0.05 | ES18: =EG23 -> 0.136 | EY18: =EH23 -> 0.5
D19: Absenteeism (sick leave) | E19: Baseline | H19: Difference from baseline in year 1 | I19: Difference from baseline in year 2 | J19: Difference from baseline in year 3 | K19: Difference from baseline in year 4 | L19: Difference from baseline in year 5 | AI19: Reduction in absenteeism | AJ19: =IF('Base case'!$E$126=1,(Inputs!AK19/100),Inputs!H21) -> 0.35 | AK19: 35 | AL19: =AJ19*100 -> 35 | AO19: 250 | AP19: -14801.49956 | AR19: 17.2 | AS19: -32363.22762 | BI19: Year 1 | BJ19: Year 2 | BK19: Year 3 | BL19: Year 4 | BM19: Year 5 | BP19: Year 1 | BQ19: Year 2 | BR19: Year 3 | BS19: Year 4 | BT19: Year 5 | BW19: Absenteeism | CC19: Cost of intervention per person | CD19: ='Four-way'!M8 -> 0 | CE19: 200 | CF19: ='Four-way'!O8 -> 400 | CG19: ='Four-way'!P8 -> 600 | CL19: Cost of absenteeism | CM19: =CD23 -> 2 | CS19: =CE23 -> 5 | CY19: =CF23 -> 17.2 | DE19: Cost of intervention per person | DF19: ='Four-way Prod'!M8 -> 0 | DG19: ='Four-way Prod'!N8 -> 200 | DH19: ='Four-way Prod'!O8 -> 400 | DI19: ='Four-way Prod'!P8 -> 600 | EE19: Cost of intervention per person | EF19: ='Four-way Turnover'!M8 -> 0 | EG19: ='Four-way Turnover'!N8 -> 200 | EH19: ='Four-way Turnover'!O8 -> 400 | EI19: ='Four-way Turnover'!P8 -> 600 | EM19: Staff turnover
D20: Number of days lost per person | E20: 4.78 | AO20: 300 | AP20: -13301.49956 | BB20: Difference from baseline in year 1 | BC20: Difference from baseline in year 2 | BD20: Difference from baseline in year 3 | BE20: Difference from baseline in year 4 | BF20: Difference from baseline in year 5 | CE20: Basecase | CM20: Absenteeism | DG20: Basecase | DM20: Productivity | EG20: Basecase | EN20: Cost of intervention per person | ET20: Cost of intervention per person | EZ20: Cost of intervention per person
D21: Cost of absenteeism per day | E21: 148.6981678 | G21: =CONCATENATE("Reduction in ",D19) -> Reduction in Absenteeism (sick leave) | H21: 0.35 | I21: 0.2 | J21: 0.1 | K21: 0.1 | L21: 0.1 | AO21: 350 | AP21: -11801.49956 | BI21: Costs after in year 1 | BJ21: Costs after in year 2 | BK21: Costs after in year 3 | BL21: Costs after in year 4 | BM21: Costs after in year 5 | BP21: Costs after in year 1 | BQ21: Costs after in year 2 | BR21: Costs after in year 3 | BS21: Costs after in year 4 | BT21: Costs after in year 5 | BX21: Two way table with percentage reduction on vertical and price of intervention on horizontal | CC21: Cost of absenteeism | CD21: ='Four-way'!M10 -> 50 | CE21: ='Four-way'!N10 -> 148.6981678 | CF21: ='Four-way'!O10 -> 300 | DE21: Value of employee | DF21: ='Four-way Prod'!M10 -> 20000 | DG21: ='Four-way Prod'!N10 -> 50000 | DH21: ='Four-way Prod'!O10 -> 75000 | DM21: =DF23 -> 0.5 | DS21: =DG23 -> 0.75 | DY21: =DH23 -> 1 | EE21: Cost per case | EF21: ='Four-way Turnover'!M10 -> 5000 | EG21: ='Four-way Turnover'!N10 -> 14500 | EH21: ='Four-way Turnover'!O10 -> 25000 | EN21: 0 | EO21: 200 | EP21: 400 | EQ21: 600 | ET21: 0 | EU21: 200 | EV21: 400 | EW21: 600 | EZ21: 0 | FA21: 200 | FB21: 400 | FC21: 600
G22: =CONCATENATE("Increase in ",D23) -> Increase in Productivity | H22: 0.001 | I22: 0.001 | J22: 0.001 | K22: 0.001 | L22: 0.001 | AI22: Percentage of staff affected | AJ22: =IF('Base case'!$E$126=1,(Inputs!AK22/100),Inputs!E24) -> 1 | AK22: 100 | AL22: =AJ22*100 -> 100 | AO22: 400 | AP22: -10301.49956 | BA22: =D19 -> Absenteeism (sick leave) | BB22: =$AJ$19 -> 0.35 | BC22: =BB22 -> 0.35 | BD22: =BB22 -> 0.35 | BE22: =BB22 -> 0.35 | BF22: =BB22 -> 0.35 | CK22: =CD21 -> 50 | CM22: 0 | CN22: -14838.33852 | CO22: -8838.33852 | CP22: -2838.33852 | CQ22: 3161.66148 | CS22: 0 | CT22: -14838.33852 | CU22: -8838.33852 | CV22: -2838.33852 | CW22: 3161.66148 | CY22: 0 | CZ22: -14838.33852 | DA22: -8838.33852 | DB22: -2838.33852 | DC22: 3161.66148 | DM22: 0 | DN22: -20687.07956 | DO22: -14687.07956 | DP22: -8687.079561 | DQ22: -2687.079561 | DS22: 0 | DT22: -20687.07956 | DU22: -14687.07956 | DV22: -8687.079561 | DW22: -2687.079561 | DY22: 0 | DZ22: -20687.07956 | EA22: -14687.07956 | EB22: -8687.079561 | EC22: -2687.079561 | EL22: Reduction in turnover | EM22: 0 | EN22: -9077.581041 | EO22: -3077.581041 | EP22: 2922.418959 | EQ22: 8922.418959 | ES22: 0 | ET22: -9077.581041 | EU22: -3077.581041 | EV22: 2922.418959 | EW22: 8922.418959 | EY22: 0 | EZ22: -9077.581041 | FA22: -3077.581041 | FB22: 2922.418959 | FC22: 8922.418959
D23: Productivity | E23: Baseline | G23: =CONCATENATE("Reduction in ",D27) -> Reduction in Staff turnover | H23: 0.225 | I23: 0.175 | J23: 0.175 | K23: 0.175 | L23: 0.175 | AI23: Value of employee | AJ23: =IF('Base case'!$E$126=1,(Inputs!AK23*100),Inputs!E25) -> 53814 | AK23: 538.14 | AL23: =AJ23/100 -> 538.14 | AO23: 450 | AP23: -8801.499561 | BA23: =D23 -> Productivity | BB23: =$AJ$24 -> 0.001 | BC23: =BB23 -> 0.001 | BD23: =BB23 -> 0.001 | BE23: =BB23 -> 0.001 | BF23: =BB23 -> 0.001 | BH23: =$D$19 -> Absenteeism (sick leave) | BI23: =(Inputs!$AJ$12*Inputs!$AJ$17*Inputs!$AJ$18*Inputs!$G$117) -> 21323.31726 | BJ23: =(Inputs!$AJ$12*Inputs!$AJ$17*Inputs!$AJ$18*Inputs!$G$117) -> 21323.31726 | BK23: =(Inputs!$AJ$12*Inputs!$AJ$17*Inputs!$AJ$18*Inputs!$G$117) -> 21323.31726 | BL23: =(Inputs!$AJ$12*Inputs!$AJ$17*Inputs!$AJ$18*Inputs!$G$117) -> 21323.31726 | BM23: =(Inputs!$AJ$12*Inputs!$AJ$17*Inputs!$AJ$18*Inputs!$G$117) -> 21323.31726 | BO23: =$D$19 -> Absenteeism (sick leave) | BP23: =BI23*(1-Inputs!BB46) -> 13860.15622 | BQ23: =BJ23*(1-Inputs!BC46) -> 13860.15622 | BR23: =BK23*(1-Inputs!BD46) -> 13860.15622 | BS23: =BL23*(1-Inputs!BE46) -> 13860.15622 | BT23: =BM23*(1-Inputs!BF46) -> 13860.15622 | CC23: Baseline absenteeism (days) | CD23: ='Four-way'!M11 -> 2 | CE23: ='Four-way'!N11 -> 5 | CF23: ='Four-way'!O11 -> 17.2 | CM23: 0.1 | CN23: -15138.33852 | CO23: -9138.33852 | CP23: -3138.33852 | CQ23: 2861.66148 | CS23: 0.1 | CT23: -15588.33852 | CU23: -9588.33852 | CV23: -3588.33852 | CW23: 2411.66148 | CY23: 0.1 | CZ23: -17418.33852 | DA23: -11418.33852 | DB23: -5418.33852 | DC23: 581.66148 | DE23: Percentage of staff affected | DF23: ='Four-way Prod'!M11 -> 0.5 | DG23: ='Four-way Prod'!N11 -> 0.75 | DH23: ='Four-way Prod'!O11 -> 1 | DL23: =DF21 -> 20000 | DM23: 0.1 | DN23: -50687.07956 | DO23: -44687.07956 | DP23: -38687.07956 | DQ23: -32687.07956 | DS23: 0.1 | DT23: -65687.07956 | DU23: -59687.07956 | DV23: -53687.07956 | DW23: -47687.07956 | DY23: 0.1 | DZ23: -80687.07956 | EA23: -74687.07956 | EB23: -68687.07956 | EC23: -62687.07956 | EE23: Baseline rate of turnover | EF23: ='Four-way Turnover'!M11 -> 0.05 | EG23: ='Four-way Turnover'!N11 -> 0.136 | EH23: ='Four-way Turnover'!O11 -> 0.5 | EK23: =EF21 -> 5000 | EM23: 0.1 | EN23: -9827.581041 | EO23: -3827.581041 | EP23: 2172.418959 | EQ23: 8172.418959 | ES23: 0.1 | ET23: -11117.58104 | EU23: -5117.581041 | EV23: 882.4189585 | EW23: 6882.418959 | EY23: 0.1 | EZ23: -16577.58104 | FA23: -10577.58104 | FB23: -4577.581041 | FC23: 1422.418959
D24: Percentage of staff affected | E24: 1 | G24: =CONCATENATE("Reduction in ",D31) -> Reduction in Placeholder 1 | H24: 0.1 | I24: 0.5 | J24: 0.5 | K24: 0.5 | L24: 0.5 | AI24: Increase in productivity | AJ24: =IF('Base case'!$E$126=1,(Inputs!AK24/100),Inputs!H22) -> 0.001 | AK24: 0.1 | AL24: =AJ24*100 -> 0.1 | AO24: 500 | AP24: -7301.499561 | BA24: =D27 -> Staff turnover | BB24: =$AJ$28 -> 0.225 | BC24: =BB24 -> 0.225 | BD24: =BB24 -> 0.225 | BE24: =BB24 -> 0.225 | BF24: =BB24 -> 0.225 | BH24: =$D$23 -> Productivity | BI24: =Inputs!$AJ$12*Inputs!$AJ$22*Inputs!$AJ$23*Inputs!$G$118 -> 1614420 | BJ24: =Inputs!$AJ$12*Inputs!$AJ$22*Inputs!$AJ$23*Inputs!$G$118 -> 1614420 | BK24: =Inputs!$AJ$12*Inputs!$AJ$22*Inputs!$AJ$23*Inputs!$G$118 -> 1614420 | BL24: =Inputs!$AJ$12*Inputs!$AJ$22*Inputs!$AJ$23*Inputs!$G$118 -> 1614420 | BM24: =Inputs!$AJ$12*Inputs!$AJ$22*Inputs!$AJ$23*Inputs!$G$118 -> 1614420 | BO24: =$D$23 -> Productivity | BP24: =BI24*(1+Inputs!BB47) -> 1616034.42 | BQ24: =BJ24*(1+Inputs!BC47) -> 1616034.42 | BR24: =BK24*(1+Inputs!BD47) -> 1616034.42 | BS24: =BL24*(1+Inputs!BE47) -> 1616034.42 | BT24: =BM24*(1+Inputs!BF47) -> 1616034.42 | BX24: Cost of intervention | CM24: 0.2 | CN24: -15438.33852 | CO24: -9438.33852 | CP24: -3438.33852 | CQ24: 2561.66148 | CS24: 0.2 | CT24: -16338.33852 | CU24: -10338.33852 | CV24: -4338.33852 | CW24: 1661.66148 | CY24: 0.2 | CZ24: -19998.33852 | DA24: -13998.33852 | DB24: -7998.33852 | DC24: -1998.33852 | DM24: 0.2 | DN24: -80687.07956 | DO24: -74687.07956 | DP24: -68687.07956 | DQ24: -62687.07956 | DS24: 0.2 | DT24: -110687.0796 | DU24: -104687.0796 | DV24: -98687.07956 | DW24: -92687.07956 | DY24: 0.2 | DZ24: -140687.0796 | EA24: -134687.0796 | EB24: -128687.0796 | EC24: -122687.0796 | EM24: 0.2 | EN24: -10577.58104 | EO24: -4577.581041 | EP24: 1422.418959 | EQ24: 7422.418959 | ES24: 0.2 | ET24: -13157.58104 | EU24: -7157.581041 | EV24: -1157.581041 | EW24: 4842.418959 | EY24: 0.2 | EZ24: -24077.58104 | FA24: -18077.58104 | FB24: -12077.58104 | FC24: -6077.581041
D25: Value of employee | E25: 53814 | G25: =CONCATENATE("Reduction in ",D35) -> Reduction in Placeholder 2 | H25: 0.1 | I25: 0.1 | J25: 0.1 | K25: 0.1 | L25: 0.1 | AO25: =H17 -> 311 | AP25: =AP13 -> -12971.49956 | BA25: =D31 -> Placeholder 1 | BB25: =$AJ$33 -> 0.1 | BC25: =BB25 -> 0.1 | BD25: =BB25 -> 0.1 | BE25: =BB25 -> 0.1 | BF25: =BB25 -> 0.1 | BH25: =$D$27 -> Staff turnover | BI25: =Inputs!$AJ$12*Inputs!$AJ$27*Inputs!$AJ$29*Inputs!$G$119 -> 58772.9712 | BJ25: =Inputs!$AJ$12*Inputs!$AJ$27*Inputs!$AJ$29*Inputs!$G$119 -> 58772.9712 | BK25: =Inputs!$AJ$12*Inputs!$AJ$27*Inputs!$AJ$29*Inputs!$G$119 -> 58772.9712 | BL25: =Inputs!$AJ$12*Inputs!$AJ$27*Inputs!$AJ$29*Inputs!$G$119 -> 58772.9712 | BM25: =Inputs!$AJ$12*Inputs!$AJ$27*Inputs!$AJ$29*Inputs!$G$119 -> 58772.9712 | BO25: =$D$27 -> Staff turnover | BP25: =BI25*(1-Inputs!BB48) -> 45549.05268 | BQ25: =BJ25*(1-Inputs!BC48) -> 45549.05268 | BR25: =BK25*(1-Inputs!BD48) -> 45549.05268 | BS25: =BL25*(1-Inputs!BE48) -> 45549.05268 | BT25: =BM25*(1-Inputs!BF48) -> 45549.05268 | BW25: ='Base case'!G19 -> -12971.49956 | BX25: =CD19 -> 0 | BY25: =CE19 -> 200 | BZ25: 400 | CA25: 600 | CM25: 0.3 | CN25: -15738.33852 | CO25: -9738.33852 | CP25: -3738.33852 | CQ25: 2261.66148 | CS25: 0.3 | CT25: -17088.33852 | CU25: -11088.33852 | CV25: -5088.33852 | CW25: 911.66148 | CY25: 0.3 | CZ25: -22578.33852 | DA25: -16578.33852 | DB25: -10578.33852 | DC25: -4578.33852 | DF25: ='Base case'!G19 -> -12971.49956 | DG25: =DF19 -> 0 | DH25: =DG19 -> 200 | DI25: 400 | DJ25: 600 | DM25: 0.3 | DN25: -110687.0796 | DO25: -104687.0796 | DP25: -98687.07956 | DQ25: -92687.07956 | DS25: 0.3 | DT25: -155687.0796 | DU25: -149687.0796 | DV25: -143687.0796 | DW25: -137687.0796 | DY25: 0.3 | DZ25: -200687.0796 | EA25: -194687.0796 | EB25: -188687.0796 | EC25: -182687.0796 | EF25: ='Base case'!G19 -> -12971.49956 | EG25: =EF19 -> 0 | EH25: =EG19 -> 200 | EI25: 400 | EJ25: 600 | EM25: 0.3 | EN25: -11327.58104 | EO25: -5327.581041 | EP25: 672.4189585 | EQ25: 6672.418959 | ES25: 0.3 | ET25: -15197.58104 | EU25: -9197.581041 | EV25: -3197.581041 | EW25: 2802.418959 | EY25: 0.3 | EZ25: -31577.58104 | FA25: -25577.58104 | FB25: -19577.58104 | FC25: -13577.58104
BA26: =D35 -> Placeholder 2 | BB26: =$AJ$38 -> 0.1 | BC26: =BB26 -> 0.1 | BD26: =BB26 -> 0.1 | BE26: =BB26 -> 0.1 | BF26: =BB26 -> 0.1 | BH26: =$D$31 -> Placeholder 1 | BI26: =Inputs!$AJ$12*Inputs!$AJ$32*Inputs!$AJ$34*Inputs!$G$120 -> 0 | BJ26: =Inputs!$AJ$12*Inputs!$AJ$32*Inputs!$AJ$34*Inputs!$G$120 -> 0 | BK26: =Inputs!$AJ$12*Inputs!$AJ$32*Inputs!$AJ$34*Inputs!$G$120 -> 0 | BL26: =Inputs!$AJ$12*Inputs!$AJ$32*Inputs!$AJ$34*Inputs!$G$120 -> 0 | BM26: =Inputs!$AJ$12*Inputs!$AJ$32*Inputs!$AJ$34*Inputs!$G$120 -> 0 | BO26: =$D$31 -> Placeholder 1 | BP26: =BI26*(1-Inputs!BB49) -> 0 | BQ26: =BJ26*(1-Inputs!BC49) -> 0 | BR26: =BK26*(1-Inputs!BD49) -> 0 | BS26: =BL26*(1-Inputs!BE49) -> 0 | BT26: =BM26*(1-Inputs!BF49) -> 0 | BW26: 0 | BX26: -14838.33852 | BY26: -8838.33852 | BZ26: -2838.33852 | CA26: 3161.66148 | CM26: 0.4 | CN26: -16038.33852 | CO26: -10038.33852 | CP26: -4038.33852 | CQ26: 1961.66148 | CS26: 0.4 | CT26: -17838.33852 | CU26: -11838.33852 | CV26: -5838.33852 | CW26: 161.66148 | CY26: 0.4 | CZ26: -25158.33852 | DA26: -19158.33852 | DB26: -13158.33852 | DC26: -7158.33852 | DF26: 0 | DG26: -20687.07956 | DH26: -14687.07956 | DI26: -8687.079561 | DJ26: -2687.079561 | DM26: 0.4 | DN26: -140687.0796 | DO26: -134687.0796 | DP26: -128687.0796 | DQ26: -122687.0796 | DS26: 0.4 | DT26: -200687.0796 | DU26: -194687.0796 | DV26: -188687.0796 | DW26: -182687.0796 | DY26: 0.4 | DZ26: -260687.0796 | EA26: -254687.0796 | EB26: -248687.0796 | EC26: -242687.0796 | EF26: 0 | EG26: -9077.581041 | EH26: -3077.581041 | EI26: 2922.418959 | EJ26: 8922.418959 | EM26: 0.4 | EN26: -12077.58104 | EO26: -6077.581041 | EP26: -77.58104147 | EQ26: 5922.418959 | ES26: 0.4 | ET26: -17237.58104 | EU26: -11237.58104 | EV26: -5237.581041 | EW26: 762.4189585 | EY26: 0.4 | EZ26: -39077.58104 | FA26: -33077.58104 | FB26: -27077.58104 | FC26: -21077.58104
D27: Staff turnover | E27: Baseline | G27: Enter difference in effectiveness to previous year | AI27: Annual rate of staff turnover | AJ27: =IF('Base case'!$E$126=1,(Inputs!AK27/100),Inputs!E28) -> 0.136 | AK27: 13.6 | AL27: =AJ27*100 -> 13.6 | BH27: =$D$35 -> Placeholder 2 | BI27: =Inputs!$AJ$12*Inputs!$AJ$37*Inputs!$AJ$39*Inputs!$G$121 -> 0 | BJ27: =Inputs!$AJ$12*Inputs!$AJ$37*Inputs!$AJ$39*Inputs!$G$121 -> 0 | BK27: =Inputs!$AJ$12*Inputs!$AJ$37*Inputs!$AJ$39*Inputs!$G$121 -> 0 | BL27: =Inputs!$AJ$12*Inputs!$AJ$37*Inputs!$AJ$39*Inputs!$G$121 -> 0 | BM27: =Inputs!$AJ$12*Inputs!$AJ$37*Inputs!$AJ$39*Inputs!$G$121 -> 0 | BO27: =$D$35 -> Placeholder 2 | BP27: =BI27*(1-Inputs!BB50) -> 0 | BQ27: =BJ27*(1-Inputs!BC50) -> 0 | BR27: =BK27*(1-Inputs!BD50) -> 0 | BS27: =BL27*(1-Inputs!BE50) -> 0 | BT27: =BM27*(1-Inputs!BF50) -> 0 | BV27: Reduction in absenteeism | BW27: 0.1 | BX27: -16970.67025 | BY27: -10970.67025 | BZ27: -4970.670246 | CA27: 1029.329754 | CM27: 0.5 | CN27: -16338.33852 | CO27: -10338.33852 | CP27: -4338.33852 | CQ27: 1661.66148 | CS27: 0.5 | CT27: -18588.33852 | CU27: -12588.33852 | CV27: -6588.33852 | CW27: -588.33852 | CY27: 0.5 | CZ27: -27738.33852 | DA27: -21738.33852 | DB27: -15738.33852 | DC27: -9738.33852 | DF27: 0.1 | DG27: -182129.0796 | DH27: -176129.0796 | DI27: -170129.0796 | DJ27: -164129.0796 | DM27: 0.5 | DN27: -170687.0796 | DO27: -164687.0796 | DP27: -158687.0796 | DQ27: -152687.0796 | DS27: 0.5 | DT27: -245687.0796 | DU27: -239687.0796 | DV27: -233687.0796 | DW27: -227687.0796 | DY27: 0.5 | DZ27: -320687.0796 | EA27: -314687.0796 | EB27: -308687.0796 | EC27: -302687.0796 | EF27: 0.1 | EG27: -14954.87816 | EH27: -8954.878161 | EI27: -2954.878161 | EJ27: 3045.121839 | EM27: 0.5 | EN27: -12827.58104 | EO27: -6827.581041 | EP27: -827.5810415 | EQ27: 5172.418959 | ES27: 0.5 | ET27: -19277.58104 | EU27: -13277.58104 | EV27: -7277.581041 | EW27: -1277.581041 | EY27: 0.5 | EZ27: -46577.58104 | FA27: -40577.58104 | FB27: -34577.58104 | FC27: -28577.58104
D28: Annual rate of staff turnover | E28: 0.136 | G28: =D19 -> Absenteeism (sick leave) | H28: 0.9 | AI28: Reduction in staff turnover | AJ28: =IF('Base case'!$E$126=1,(Inputs!AK28/100),Inputs!H23) -> 0.225 | AK28: 22.5 | AL28: =AJ28*100 -> 22.5 | AO28: Absenteeism | BA28: Option 2 - difference in effectiveness each year | BH28: Intervention cost | BI28: 0 | BJ28: 0 | BK28: 0 | BL28: 0 | BM28: 0 | BO28: Intervention cost | BP28: =$AJ$12*AJ14 -> 9330 | BQ28: =$E$14*I17 -> 0 | BR28: =$E$14*J17 -> 0 | BS28: =$E$14*K17 -> 0 | BT28: =$E$14*L17 -> 0 | BW28: 0.2 | BX28: -19103.00197 | BY28: -13103.00197 | BZ28: -7103.001972 | CA28: -1103.001972 | CM28: 0.6 | CN28: -16638.33852 | CO28: -10638.33852 | CP28: -4638.33852 | CQ28: 1361.66148 | CS28: 0.6 | CT28: -19338.33852 | CU28: -13338.33852 | CV28: -7338.33852 | CW28: -1338.33852 | CY28: 0.6 | CZ28: -30318.33852 | DA28: -24318.33852 | DB28: -18318.33852 | DC28: -12318.33852 | DE28: Increase in productivity | DF28: 0.2 | DG28: -343571.0796 | DH28: -337571.0796 | DI28: -331571.0796 | DJ28: -325571.0796 | DM28: 0.6 | DN28: -200687.0796 | DO28: -194687.0796 | DP28: -188687.0796 | DQ28: -182687.0796 | DS28: 0.6 | DT28: -290687.0796 | DU28: -284687.0796 | DV28: -278687.0796 | DW28: -272687.0796 | DY28: 0.6 | DZ28: -380687.0796 | EA28: -374687.0796 | EB28: -368687.0796 | EC28: -362687.0796 | EE28: Reduction in turnover | EF28: 0.2 | EG28: -20832.17528 | EH28: -14832.17528 | EI28: -8832.175281 | EJ28: -2832.175281 | EM28: 0.6 | EN28: -13577.58104 | EO28: -7577.581041 | EP28: -1577.581041 | EQ28: 4422.418959 | ES28: 0.6 | ET28: -21317.58104 | EU28: -15317.58104 | EV28: -9317.581041 | EW28: -3317.581041 | EY28: 0.6 | EZ28: -54077.58104 | FA28: -48077.58104 | FB28: -42077.58104 | FC28: -36077.58104
D29: Cost per case of staff turnover | E29: 14405.14 | G29: =D23 -> Productivity | H29: 0.9 | AI29: Cost per case of staff turnover | AJ29: =IF('Base case'!$E$126=1,Inputs!AK29,Inputs!E29) -> 14405.14 | AK29: 14405.14 | AO29: No. of days | AP29: ='Base case'!G19 -> -12971.49956 | AR29: Cost per day | AS29: ='Base case'!G19 -> -12971.49956 | AU29: Reduction | AV29: ='Base case'!G19 -> -12971.49956 | BH29: Total | BI29: =SUM(BI23:BI28) -> 1694516.288 | BJ29: =SUM(BJ23:BJ28) -> 1694516.288 | BK29: =SUM(BK23:BK28) -> 1694516.288 | BL29: =SUM(BL23:BL28) -> 1694516.288 | BM29: =SUM(BM23:BM28) -> 1694516.288 | BO29: Total | BP29: =SUM(BP23:BP28) -> 1684773.629 | BQ29: =SUM(BQ23:BQ28) -> 1675443.629 | BR29: =SUM(BR23:BR28) -> 1675443.629 | BS29: =SUM(BS23:BS28) -> 1675443.629 | BT29: =SUM(BT23:BT28) -> 1675443.629 | BW29: 0.3 | BX29: -21235.3337 | BY29: -15235.3337 | BZ29: -9235.333698 | CA29: -3235.333698 | CM29: 0.7 | CN29: -16938.33852 | CO29: -10938.33852 | CP29: -4938.33852 | CQ29: 1061.66148 | CS29: 0.7 | CT29: -20088.33852 | CU29: -14088.33852 | CV29: -8088.33852 | CW29: -2088.33852 | CY29: 0.7 | CZ29: -32898.33852 | DA29: -26898.33852 | DB29: -20898.33852 | DC29: -14898.33852 | DF29: 0.3 | DG29: -505013.0796 | DH29: -499013.0796 | DI29: -493013.0796 | DJ29: -487013.0796 | DM29: 0.7 | DN29: -230687.0796 | DO29: -224687.0796 | DP29: -218687.0796 | DQ29: -212687.0796 | DS29: 0.7 | DT29: -335687.0796 | DU29: -329687.0796 | DV29: -323687.0796 | DW29: -317687.0796 | DY29: 0.7 | DZ29: -440687.0796 | EA29: -434687.0796 | EB29: -428687.0796 | EC29: -422687.0796 | EF29: 0.3 | EG29: -26709.4724 | EH29: -20709.4724 | EI29: -14709.4724 | EJ29: -8709.472401 | EM29: 0.7 | EN29: -14327.58104 | EO29: -8327.581041 | EP29: -2327.581041 | EQ29: 3672.418959 | ES29: 0.7 | ET29: -23357.58104 | EU29: -17357.58104 | EV29: -11357.58104 | EW29: -5357.581041 | EY29: 0.7 | EZ29: -61577.58104 | FA29: -55577.58104 | FB29: -49577.58104 | FC29: -43577.58104
G30: =D27 -> Staff turnover | H30: 0.9 | AO30: 0 | AP30: -5508.33852 | AR30: 0 | AS30: -5508.33852 | AU30: 0 | AV30: -5508.33852 | BB30: Year 1 | BC30: Year 2 | BD30: Year 3 | BE30: Year 4 | BF30: Year 5 | BW30: 0.4 | BX30: -23367.66542 | BY30: -17367.66542 | BZ30: -11367.66542 | CA30: -5367.665425 | CM30: 0.8 | CN30: -17238.33852 | CO30: -11238.33852 | CP30: -5238.33852 | CQ30: 761.66148 | CS30: 0.8 | CT30: -20838.33852 | CU30: -14838.33852 | CV30: -8838.33852 | CW30: -2838.33852 | CY30: 0.8 | CZ30: -35478.33852 | DA30: -29478.33852 | DB30: -23478.33852 | DC30: -17478.33852 | DF30: 0.4 | DG30: -666455.0796 | DH30: -660455.0796 | DI30: -654455.0796 | DJ30: -648455.0796 | DM30: 0.8 | DN30: -260687.0796 | DO30: -254687.0796 | DP30: -248687.0796 | DQ30: -242687.0796 | DS30: 0.8 | DT30: -380687.0796 | DU30: -374687.0796 | DV30: -368687.0796 | DW30: -362687.0796 | DY30: 0.8 | DZ30: -500687.0796 | EA30: -494687.0796 | EB30: -488687.0796 | EC30: -482687.0796 | EF30: 0.4 | EG30: -32586.76952 | EH30: -26586.76952 | EI30: -20586.76952 | EJ30: -14586.76952 | EM30: 0.8 | EN30: -15077.58104 | EO30: -9077.581041 | EP30: -3077.581041 | EQ30: 2922.418959 | ES30: 0.8 | ET30: -25397.58104 | EU30: -19397.58104 | EV30: -13397.58104 | EW30: -7397.581041 | EY30: 0.8 | EZ30: -69077.58104 | FA30: -63077.58104 | FB30: -57077.58104 | FC30: -51077.58104
D31: Placeholder 1 | E31: Baseline | G31: =D31 -> Placeholder 1 | H31: 0.9 | AO31: 2 | AP31: -8631.000044 | AR31: 50 | AS31: -8017.83852 | AU31: 0.05 | AV31: -6574.504383 | BH31: Discounted | BO31: Discounted | BW31: 0.5 | BX31: -25499.99715 | BY31: -19499.99715 | BZ31: -13499.99715 | CA31: -7499.997151 | CM31: 0.9 | CN31: -17538.33852 | CO31: -11538.33852 | CP31: -5538.33852 | CQ31: 461.66148 | CS31: 0.9 | CT31: -21588.33852 | CU31: -15588.33852 | CV31: -9588.33852 | CW31: -3588.33852 | CY31: 0.9 | CZ31: -38058.33852 | DA31: -32058.33852 | DB31: -26058.33852 | DC31: -20058.33852 | DF31: 0.5 | DG31: -827897.0796 | DH31: -821897.0796 | DI31: -815897.0796 | DJ31: -809897.0796 | DM31: 0.9 | DN31: -290687.0796 | DO31: -284687.0796 | DP31: -278687.0796 | DQ31: -272687.0796 | DS31: 0.9 | DT31: -425687.0796 | DU31: -419687.0796 | DV31: -413687.0796 | DW31: -407687.0796 | DY31: 0.9 | DZ31: -560687.0796 | EA31: -554687.0796 | EB31: -548687.0796 | EC31: -542687.0796 | EF31: 0.5 | EG31: -38464.06664 | EH31: -32464.06664 | EI31: -26464.06664 | EJ31: -20464.06664 | EM31: 0.9 | EN31: -15827.58104 | EO31: -9827.581041 | EP31: -3827.581041 | EQ31: 2172.418959 | ES31: 0.9 | ET31: -27437.58104 | EU31: -21437.58104 | EV31: -15437.58104 | EW31: -9437.581041 | EY31: 0.9 | EZ31: -76577.58104 | FA31: -70577.58104 | FB31: -64577.58104 | FC31: -58577.58104
D32: Percentage of staff affected | E32: 0.22 | G32: =D35 -> Placeholder 2 | H32: 0.9 | AI32: Percentage of staff affected | AJ32: =IF('Base case'!$E$126=1,(Inputs!AK32/100),Inputs!E32) -> 0.22 | AK32: 22 | AL32: =AJ32*100 -> 22 | AO32: 4 | AP32: -11753.66157 | AR32: 100 | AS32: -10527.33852 | AU32: 0.1 | AV32: -7640.670246 | BB32: Difference from baseline in year 1 | BC32: Difference from baseline in year 2 | BD32: Difference from baseline in year 3 | BE32: Difference from baseline in year 4 | BF32: Difference from baseline in year 5 | BI32: Cycle | BP32: Cycle | BW32: 0.6 | BX32: -27632.32888 | BY32: -21632.32888 | BZ32: -15632.32888 | CA32: -9632.328877 | CM32: 1 | CN32: -17838.33852 | CO32: -11838.33852 | CP32: -5838.33852 | CQ32: 161.66148 | CS32: 1 | CT32: -22338.33852 | CU32: -16338.33852 | CV32: -10338.33852 | CW32: -4338.33852 | CY32: 1 | CZ32: -40638.33852 | DA32: -34638.33852 | DB32: -28638.33852 | DC32: -22638.33852 | DF32: 0.6 | DG32: -989339.0796 | DH32: -983339.0796 | DI32: -977339.0796 | DJ32: -971339.0796 | DM32: 1 | DN32: -320687.0796 | DO32: -314687.0796 | DP32: -308687.0796 | DQ32: -302687.0796 | DS32: 1 | DT32: -470687.0796 | DU32: -464687.0796 | DV32: -458687.0796 | DW32: -452687.0796 | DY32: 1 | DZ32: -620687.0796 | EA32: -614687.0796 | EB32: -608687.0796 | EC32: -602687.0796 | EF32: 0.6 | EG32: -44341.36376 | EH32: -38341.36376 | EI32: -32341.36376 | EJ32: -26341.36376 | EM32: 1 | EN32: -16577.58104 | EO32: -10577.58104 | EP32: -4577.581041 | EQ32: 1422.418959 | ES32: 1 | ET32: -29477.58104 | EU32: -23477.58104 | EV32: -17477.58104 | EW32: -11477.58104 | EY32: 1 | EZ32: -84077.58104 | FA32: -78077.58104 | FB32: -72077.58104 | FC32: -66077.58104
D33: Cost per person affected | E33: 840.97 | AI33: Reduction in healthcare use | AJ33: =IF('Base case'!$E$126=1,(Inputs!AK33/100),Inputs!H24) -> 0.1 | AK33: 10 | AL33: =AJ33*100 -> 10 | AO33: 6 | AP33: -14876.32309 | AR33: 150 | AS33: -13036.83852 | AU33: 0.15 | AV33: -8706.836109 | BI33: 0 | BJ33: 1 | BK33: 2 | BL33: 3 | BM33: 4 | BP33: 0 | BQ33: 1 | BR33: 2 | BS33: 3 | BT33: 4 | BW33: 0.7 | BX33: -29764.6606 | BY33: -23764.6606 | BZ33: -17764.6606 | CA33: -11764.6606 | DF33: 0.7 | DG33: -1150781.08 | DH33: -1144781.08 | DI33: -1138781.08 | DJ33: -1132781.08 | EF33: 0.7 | EG33: -50218.66088 | EH33: -44218.66088 | EI33: -38218.66088 | EJ33: -32218.66088
AI34: Cost per person affected | AJ34: =IF('Base case'!$E$126=1,Inputs!AK34,Inputs!E33) -> 840.97 | AK34: 840.97 | AO34: 8 | AP34: -17998.98461 | AR34: 200 | AS34: -15546.33852 | AU34: 0.2 | AV34: -9773.001972 | BA34: =$D$19 -> Absenteeism (sick leave) | BB34: =$AJ$19 -> 0.35 | BC34: =BB34*H28 -> 0.315 | BD34: =BC34*H28 -> 0.2835 | BE34: =BD34*H28 -> 0.25515 | BF34: =BE34*H28 -> 0.229635 | BH34: =$D$19 -> Absenteeism (sick leave) | BI34: =BI23 -> 21323.31726 | BJ34: =BJ23/(1+$E$17)^$BQ$33 -> 20602.2389 | BK34: =BK23/(1+$E$17)^$BR$33 -> 19905.54483 | BL34: =BL23/(1+$E$17)^$BS$33 -> 19232.41046 | BM34: =BM23/(1+$E$17)^$BT$33 -> 18582.0391 | BO34: =$D$19 -> Absenteeism (sick leave) | BP34: =BP23 -> 13860.15622 | BQ34: =BQ23/(1+$E$17)^$BQ$33 -> 13391.45528 | BR34: =BR23/(1+$E$17)^$BR$33 -> 12938.60414 | BS34: =BS23/(1+$E$17)^$BS$33 -> 12501.0668 | BT34: =BT23/(1+$E$17)^$BT$33 -> 12078.32541 | BW34: 0.8 | BX34: -31896.99233 | BY34: -25896.99233 | BZ34: -19896.99233 | CA34: -13896.99233 | CK34: =CE21 -> 148.6981678 | CM34: 0 | CN34: -14838.33852 | CO34: -8838.33852 | CP34: -2838.33852 | CQ34: 3161.66148 | CS34: 0 | CT34: -14838.33852 | CU34: -8838.33852 | CV34: -2838.33852 | CW34: 3161.66148 | CY34: 0 | CZ34: -14838.33852 | DA34: -8838.33852 | DB34: -2838.33852 | DC34: 3161.66148 | DF34: 0.8 | DG34: -1312223.08 | DH34: -1306223.08 | DI34: -1300223.08 | DJ34: -1294223.08 | DM34: 0 | DN34: -20687.07956 | DO34: -14687.07956 | DP34: -8687.079561 | DQ34: -2687.079561 | DS34: 0 | DT34: -20687.07956 | DU34: -14687.07956 | DV34: -8687.079561 | DW34: -2687.079561 | DY34: 0 | DZ34: -20687.07956 | EA34: -14687.07956 | EB34: -8687.079561 | EC34: -2687.079561 | EF34: 0.8 | EG34: -56095.958 | EH34: -50095.958 | EI34: -44095.958 | EJ34: -38095.958 | EL34: Reduction in turnover | EM34: 0 | EN34: -9077.581041 | EO34: -3077.581041 | EP34: 2922.418959 | EQ34: 8922.418959 | ES34: 0 | ET34: -9077.581041 | EU34: -3077.581041 | EV34: 2922.418959 | EW34: 8922.418959 | EY34: 0 | EZ34: -9077.581041 | FA34: -3077.581041 | FB34: 2922.418959 | FC34: 8922.418959
D35: Placeholder 2 | E35: Baseline | AO35: 10 | AP35: -21121.64614 | AR35: 250 | AS35: -18055.83852 | AU35: 0.25 | AV35: -10839.16784 | BA35: =$D$23 -> Productivity | BB35: =$AJ$24 -> 0.001 | BC35: =BB35*H29 -> 0.0009 | BD35: =BC35*H29 -> 0.00081 | BE35: =BD35*H29 -> 0.000729 | BF35: =BE35*H29 -> 0.0006561 | BH35: =$D$23 -> Productivity | BI35: 1614420 | BJ35: 1559826.087 | BK35: 1507078.345 | BL35: 1456114.343 | BM35: 1406873.761 | BO35: =$D$23 -> Productivity | BP35: =BP24 -> 1616034.42 | BQ35: 1561385.913 | BR35: 1508585.423 | BS35: 1457570.457 | BT35: 1408280.635 | BW35: 0.9 | BX35: -34029.32406 | BY35: -28029.32406 | BZ35: -22029.32406 | CA35: -16029.32406 | CM35: 0.1 | CN35: -15730.52753 | CO35: -9730.527527 | CP35: -3730.527527 | CQ35: 2269.472473 | CS35: 0.1 | CT35: -17068.81104 | CU35: -11068.81104 | CV35: -5068.811037 | CW35: 931.1889631 | CY35: 0.1 | CZ35: -22511.16398 | DA35: -16511.16398 | DB35: -10511.16398 | DC35: -4511.163978 | DF35: 0.9 | DG35: -1473665.08 | DH35: -1467665.08 | DI35: -1461665.08 | DJ35: -1455665.08 | DL35: =DG21 -> 50000 | DM35: 0.1 | DN35: -95687.07956 | DO35: -89687.07956 | DP35: -83687.07956 | DQ35: -77687.07956 | DS35: 0.1 | DT35: -133187.0796 | DU35: -127187.0796 | DV35: -121187.0796 | DW35: -115187.0796 | DY35: 0.1 | DZ35: -170687.0796 | EA35: -164687.0796 | EB35: -158687.0796 | EC35: -152687.0796 | EF35: 0.9 | EG35: -61973.25512 | EH35: -55973.25512 | EI35: -49973.25512 | EJ35: -43973.25512 | EK35: =EG21 -> 14500 | EM35: 0.1 | EN35: -11252.58104 | EO35: -5252.581041 | EP35: 747.4189585 | EQ35: 6747.418959 | ES35: 0.1 | ET35: -14993.58104 | EU35: -8993.581041 | EV35: -2993.581041 | EW35: 3006.418959 | EY35: 0.1 | EZ35: -30827.58104 | FA35: -24827.58104 | FB35: -18827.58104 | FC35: -12827.58104
D36: Percentage of staff affected | E36: 0.05 | AO36: 12 | AP36: -24244.30766 | AR36: 300 | AS36: -20565.33852 | AU36: 0.3 | AV36: -11905.3337 | BA36: =$D$27 -> Staff turnover | BB36: =$AJ$28 -> 0.225 | BC36: =BB36*H30 -> 0.2025 | BD36: =BC36*H30 -> 0.18225 | BE36: =BD36*H30 -> 0.164025 | BF36: =BE36*H30 -> 0.1476225 | BH36: =$D$27 -> Staff turnover | BI36: 58772.9712 | BJ36: 56785.47942 | BK36: 54865.19751 | BL36: 53009.85266 | BM36: 51217.24895 | BO36: =$D$27 -> Staff turnover | BP36: 45549.05268 | BQ36: 44008.74655 | BR36: 42520.52807 | BS36: 41082.63581 | BT36: 39693.36794 | BW36: 1 | BX36: -36161.65578 | BY36: -30161.65578 | BZ36: -24161.65578 | CA36: -18161.65578 | CM36: 0.2 | CN36: -16622.71653 | CO36: -10622.71653 | CP36: -4622.716534 | CQ36: 1377.283466 | CS36: 0.2 | CT36: -19299.28355 | CU36: -13299.28355 | CV36: -7299.283554 | CW36: -1299.283554 | CY36: 0.2 | CZ36: -30183.98944 | DA36: -24183.98944 | DB36: -18183.98944 | DC36: -12183.98944 | DF36: 1 | DG36: -1635107.08 | DH36: -1629107.08 | DI36: -1623107.08 | DJ36: -1617107.08 | DM36: 0.2 | DN36: -170687.0796 | DO36: -164687.0796 | DP36: -158687.0796 | DQ36: -152687.0796 | DS36: 0.2 | DT36: -245687.0796 | DU36: -239687.0796 | DV36: -233687.0796 | DW36: -227687.0796 | DY36: 0.2 | DZ36: -320687.0796 | EA36: -314687.0796 | EB36: -308687.0796 | EC36: -302687.0796 | EF36: 1 | EG36: -67850.55224 | EH36: -61850.55224 | EI36: -55850.55224 | EJ36: -49850.55224 | EM36: 0.2 | EN36: -13427.58104 | EO36: -7427.581041 | EP36: -1427.581041 | EQ36: 4572.418959 | ES36: 0.2 | ET36: -20909.58104 | EU36: -14909.58104 | EV36: -8909.581041 | EW36: -2909.581041 | EY36: 0.2 | EZ36: -52577.58104 | FA36: -46577.58104 | FB36: -40577.58104 | FC36: -34577.58104
D37: Cost per person affected | E37: 5000 | AI37: Percentage of staff affected | AJ37: =IF('Base case'!$E$126=1,(Inputs!AK37/100),Inputs!E36) -> 0.05 | AK37: 5 | AL37: =AJ37*100 -> 5 | AO37: 14 | AP37: -27366.96919 | AR37: 350 | AS37: -23074.83852 | AU37: 0.35 | AV37: -12971.49956 | BA37: =$D$31 -> Placeholder 1 | BB37: =$AJ$33 -> 0.1 | BC37: =BB37*H31 -> 0.09 | BD37: =BC37*H31 -> 0.081 | BE37: =BD37*H31 -> 0.0729 | BF37: =BE37*H31 -> 0.06561 | BH37: =$D$31 -> Placeholder 1 | BI37: 0 | BJ37: 0 | BK37: 0 | BL37: 0 | BM37: 0 | BO37: =$D$31 -> Placeholder 1 | BP37: 0 | BQ37: 0 | BR37: 0 | BS37: 0 | BT37: 0 | CM37: 0.3 | CN37: -17514.90554 | CO37: -11514.90554 | CP37: -5514.90554 | CQ37: 485.0944597 | CS37: 0.3 | CT37: -21529.75607 | CU37: -15529.75607 | CV37: -9529.756071 | CW37: -3529.756071 | CY37: 0.3 | CZ37: -37856.81489 | DA37: -31856.81489 | DB37: -25856.81489 | DC37: -19856.81489 | DM37: 0.3 | DN37: -245687.0796 | DO37: -239687.0796 | DP37: -233687.0796 | DQ37: -227687.0796 | DS37: 0.3 | DT37: -358187.0796 | DU37: -352187.0796 | DV37: -346187.0796 | DW37: -340187.0796 | DY37: 0.3 | DZ37: -470687.0796 | EA37: -464687.0796 | EB37: -458687.0796 | EC37: -452687.0796 | EM37: 0.3 | EN37: -15602.58104 | EO37: -9602.581041 | EP37: -3602.581041 | EQ37: 2397.418959 | ES37: 0.3 | ET37: -26825.58104 | EU37: -20825.58104 | EV37: -14825.58104 | EW37: -8825.581041 | EY37: 0.3 | EZ37: -74327.58104 | FA37: -68327.58104 | FB37: -62327.58104 | FC37: -56327.58104
AI38: Reduction in societal costs | AJ38: =IF('Base case'!$E$126=1,(Inputs!AK38/100),Inputs!H25) -> 0.1 | AK38: 10 | AL38: =AJ38*100 -> 10 | AO38: 16 | AP38: -30489.63071 | AR38: 400 | AS38: -25584.33852 | AU38: 0.4 | AV38: -14037.66542 | BA38: =$D$35 -> Placeholder 2 | BB38: =$AJ$38 -> 0.1 | BC38: =BB38*H32 -> 0.09 | BD38: =BC38*H32 -> 0.081 | BE38: =BD38*H32 -> 0.0729 | BF38: =BE38*H32 -> 0.06561 | BH38: =$D$35 -> Placeholder 2 | BI38: 0 | BJ38: 0 | BK38: 0 | BL38: 0 | BM38: 0 | BO38: =$D$35 -> Placeholder 2 | BP38: 0 | BQ38: 0 | BR38: 0 | BS38: 0 | BT38: 0 | CM38: 0.4 | CN38: -18407.09455 | CO38: -12407.09455 | CP38: -6407.094547 | CQ38: -407.094547 | CS38: 0.4 | CT38: -23760.22859 | CU38: -17760.22859 | CV38: -11760.22859 | CW38: -5760.228588 | CY38: 0.4 | CZ38: -45529.64035 | DA38: -39529.64035 | DB38: -33529.64035 | DC38: -27529.64035 | DM38: 0.4 | DN38: -320687.0796 | DO38: -314687.0796 | DP38: -308687.0796 | DQ38: -302687.0796 | DS38: 0.4 | DT38: -470687.0796 | DU38: -464687.0796 | DV38: -458687.0796 | DW38: -452687.0796 | DY38: 0.4 | DZ38: -620687.0796 | EA38: -614687.0796 | EB38: -608687.0796 | EC38: -602687.0796 | EM38: 0.4 | EN38: -17777.58104 | EO38: -11777.58104 | EP38: -5777.581041 | EQ38: 222.4189585 | ES38: 0.4 | ET38: -32741.58104 | EU38: -26741.58104 | EV38: -20741.58104 | EW38: -14741.58104 | EY38: 0.4 | EZ38: -96077.58104 | FA38: -90077.58104 | FB38: -84077.58104 | FC38: -78077.58104
AI39: Cost per person affected | AJ39: =IF('Base case'!$E$126=1,Inputs!AK39,Inputs!E37) -> 5000 | AK39: 5000 | AO39: 18 | AP39: -33612.29223 | AR39: 450 | AS39: -28093.83852 | AU39: 0.45 | AV39: -15103.83129 | BH39: Intervention cost | BI39: 0 | BJ39: 0 | BK39: 0 | BL39: 0 | BM39: 0 | BO39: Intervention cost | BP39: =BP28 -> 9330 | BQ39: 0 | BR39: 0 | BS39: 0 | BT39: 0 | CM39: 0.5 | CN39: -19299.28355 | CO39: -13299.28355 | CP39: -7299.283554 | CQ39: -1299.283554 | CS39: 0.5 | CT39: -25990.7011 | CU39: -19990.7011 | CV39: -13990.7011 | CW39: -7990.701104 | CY39: 0.5 | CZ39: -53202.46581 | DA39: -47202.46581 | DB39: -41202.46581 | DC39: -35202.46581 | DM39: 0.5 | DN39: -395687.0796 | DO39: -389687.0796 | DP39: -383687.0796 | DQ39: -377687.0796 | DS39: 0.5 | DT39: -583187.0796 | DU39: -577187.0796 | DV39: -571187.0796 | DW39: -565187.0796 | DY39: 0.5 | DZ39: -770687.0796 | EA39: -764687.0796 | EB39: -758687.0796 | EC39: -752687.0796 | EM39: 0.5 | EN39: -19952.58104 | EO39: -13952.58104 | EP39: -7952.581041 | EQ39: -1952.581041 | ES39: 0.5 | ET39: -38657.58104 | EU39: -32657.58104 | EV39: -26657.58104 | EW39: -20657.58104 | EY39: 0.5 | EZ39: -117827.581 | FA39: -111827.581 | FB39: -105827.581 | FC39: -99827.58104
AO40: 20 | AP40: -36734.95376 | AR40: 500 | AS40: -30603.33852 | AU40: 0.5 | AV40: -16169.99715 | BA40: LIVE | BH40: Total | BI40: 1694516.288 | BJ40: =SUM(BJ34:BJ39) -> 1637213.805 | BK40: =SUM(BK34:BK39) -> 1581849.087 | BL40: =SUM(BL34:BL39) -> 1528356.606 | BM40: =SUM(BM34:BM39) -> 1476673.049 | BO40: Total | BP40: 1684773.629 | BQ40: =SUM(BQ34:BQ39) -> 1618786.115 | BR40: =SUM(BR34:BR39) -> 1564044.555 | BS40: 1511154.16 | BT40: 1460052.328 | CM40: 0.6 | CN40: -20191.47256 | CO40: -14191.47256 | CP40: -8191.472561 | CQ40: -2191.472561 | CS40: 0.6 | CT40: -28221.17362 | CU40: -22221.17362 | CV40: -16221.17362 | CW40: -10221.17362 | CY40: 0.6 | CZ40: -60875.29127 | DA40: -54875.29127 | DB40: -48875.29127 | DC40: -42875.29127 | DM40: 0.6 | DN40: -470687.0796 | DO40: -464687.0796 | DP40: -458687.0796 | DQ40: -452687.0796 | DS40: 0.6 | DT40: -695687.0796 | DU40: -689687.0796 | DV40: -683687.0796 | DW40: -677687.0796 | DY40: 0.6 | DZ40: -920687.0796 | EA40: -914687.0796 | EB40: -908687.0796 | EC40: -902687.0796 | EM40: 0.6 | EN40: -22127.58104 | EO40: -16127.58104 | EP40: -10127.58104 | EQ40: -4127.581041 | ES40: 0.6 | ET40: -44573.58104 | EU40: -38573.58104 | EV40: -32573.58104 | EW40: -26573.58104 | EY40: 0.6 | EZ40: -139577.581 | FA40: -133577.581 | FB40: -127577.581 | FC40: -121577.581 | FF40: Intervention cost | FG40: Reduction in turnover required to be cost-saving (%)
AO41: =AJ17 -> 4.78 | AP41: =AP29 -> -12971.49956 | AR41: =AJ18 -> 148.6981678 | AS41: =AS29 -> -12971.49956 | AU41: =AJ19 -> 0.35 | AV41: =AV29 -> -12971.49956 | CM41: 0.7 | CN41: -21083.66157 | CO41: -15083.66157 | CP41: -9083.661567 | CQ41: -3083.661567 | CS41: 0.7 | CT41: -30451.64614 | CU41: -24451.64614 | CV41: -18451.64614 | CW41: -12451.64614 | CY41: 0.7 | CZ41: -68548.11673 | DA41: -62548.11673 | DB41: -56548.11673 | DC41: -50548.11673 | DM41: 0.7 | DN41: -545687.0796 | DO41: -539687.0796 | DP41: -533687.0796 | DQ41: -527687.0796 | DS41: 0.7 | DT41: -808187.0796 | DU41: -802187.0796 | DV41: -796187.0796 | DW41: -790187.0796 | DY41: 0.7 | DZ41: -1070687.08 | EA41: -1064687.08 | EB41: -1058687.08 | EC41: -1052687.08 | EM41: 0.7 | EN41: -24302.58104 | EO41: -18302.58104 | EP41: -12302.58104 | EQ41: -6302.581041 | ES41: 0.7 | ET41: -50489.58104 | EU41: -44489.58104 | EV41: -38489.58104 | EW41: -32489.58104 | EY41: 0.7 | EZ41: -161327.581 | FA41: -155327.581 | FB41: -149327.581 | FC41: -143327.581
BB42: Year 1 | BC42: Year 2 | BD42: Year 3 | BE42: Year 4 | BF42: Year 5 | CM42: 0.8 | CN42: -21975.85057 | CO42: -15975.85057 | CP42: -9975.850574 | CQ42: -3975.850574 | CS42: 0.8 | CT42: -32682.11866 | CU42: -26682.11866 | CV42: -20682.11866 | CW42: -14682.11866 | CY42: 0.8 | CZ42: -76220.94218 | DA42: -70220.94218 | DB42: -64220.94218 | DC42: -58220.94218 | DM42: 0.8 | DN42: -620687.0796 | DO42: -614687.0796 | DP42: -608687.0796 | DQ42: -602687.0796 | DS42: 0.8 | DT42: -920687.0796 | DU42: -914687.0796 | DV42: -908687.0796 | DW42: -902687.0796 | DY42: 0.8 | DZ42: -1220687.08 | EA42: -1214687.08 | EB42: -1208687.08 | EC42: -1202687.08 | EM42: 0.8 | EN42: -26477.58104 | EO42: -20477.58104 | EP42: -14477.58104 | EQ42: -8477.581041 | ES42: 0.8 | ET42: -56405.58104 | EU42: -50405.58104 | EV42: -44405.58104 | EW42: -38405.58104 | EY42: 0.8 | EZ42: -183077.581 | FA42: -177077.581 | FB42: -171077.581 | FC42: -165077.581 | FF42: 0 | FG42: Always cost saving
AO43: Productivity | BI43: Cumulative discounted | BP43: Cumulative discounted | CM43: 0.9 | CN43: -22868.03958 | CO43: -16868.03958 | CP43: -10868.03958 | CQ43: -4868.039581 | CS43: 0.9 | CT43: -34912.59117 | CU43: -28912.59117 | CV43: -22912.59117 | CW43: -16912.59117 | CY43: 0.9 | CZ43: -83893.76764 | DA43: -77893.76764 | DB43: -71893.76764 | DC43: -65893.76764 | DM43: 0.9 | DN43: -695687.0796 | DO43: -689687.0796 | DP43: -683687.0796 | DQ43: -677687.0796 | DS43: 0.9 | DT43: -1033187.08 | DU43: -1027187.08 | DV43: -1021187.08 | DW43: -1015187.08 | DY43: 0.9 | DZ43: -1370687.08 | EA43: -1364687.08 | EB43: -1358687.08 | EC43: -1352687.08 | EM43: 0.9 | EN43: -28652.58104 | EO43: -22652.58104 | EP43: -16652.58104 | EQ43: -10652.58104 | ES43: 0.9 | ET43: -62321.58104 | EU43: -56321.58104 | EV43: -50321.58104 | EW43: -44321.58104 | EY43: 0.9 | EZ43: -204827.581 | FA43: -198827.581 | FB43: -192827.581 | FC43: -186827.581 | FF43: 200 | FG43: Always cost saving
J44: Calcs | AO44: % affected | AP44: ='Base case'!G19 -> -12971.49956 | AR44: Value of emp | AS44: ='Base case'!G19 -> -12971.49956 | AU44: Increase in prod | AV44: ='Base case'!G19 -> -12971.49956 | BB44: Difference from baseline in year 1 | BC44: Difference from baseline in year 2 | BD44: Difference from baseline in year 3 | BE44: Difference from baseline in year 4 | BF44: Difference from baseline in year 5 | BI44: Year 1 | BJ44: Year 2 | BK44: Year 3 | BL44: Year 4 | BM44: Year 5 | BP44: Year 1 | BQ44: Year 2 | BR44: Year 3 | BS44: Year 4 | BT44: Year 5 | CM44: 1 | CN44: -23760.22859 | CO44: -17760.22859 | CP44: -11760.22859 | CQ44: -5760.228588 | CS44: 1 | CT44: -37143.06369 | CU44: -31143.06369 | CV44: -25143.06369 | CW44: -19143.06369 | CY44: 1 | CZ44: -91566.5931 | DA44: -85566.5931 | DB44: -79566.5931 | DC44: -73566.5931 | DM44: 1 | DN44: -770687.0796 | DO44: -764687.0796 | DP44: -758687.0796 | DQ44: -752687.0796 | DS44: 1 | DT44: -1145687.08 | DU44: -1139687.08 | DV44: -1133687.08 | DW44: -1127687.08 | DY44: 1 | DZ44: -1520687.08 | EA44: -1514687.08 | EB44: -1508687.08 | EC44: -1502687.08 | EM44: 1 | EN44: -30827.58104 | EO44: -24827.58104 | EP44: -18827.58104 | EQ44: -12827.58104 | ES44: 1 | ET44: -68237.58104 | EU44: -62237.58104 | EV44: -56237.58104 | EW44: -50237.58104 | EY44: 1 | EZ44: -226577.581 | FA44: -220577.581 | FB44: -214577.581 | FC44: -208577.581 | FF44: 400 | FG44: 0.49
J45: year 1 | K45: year 2 | AO45: 0 | AP45: -11357.07956 | AR45: 0 | AS45: -11357.07956 | AU45: 0 | AV45: -11357.07956 | BH45: =$D$19 -> Absenteeism (sick leave) | BI45: =BI34 -> 21323.31726 | BJ45: =BI45+BJ34 -> 41925.55616 | BK45: 61831.10099 | BL45: 81063.51146 | BM45: 99645.55055 | BO45: =$D$19 -> Absenteeism (sick leave) | BP45: =BP34 -> 13860.15622 | BQ45: =BP45+BQ34 -> 27251.6115 | BR45: =BQ45+BR34 -> 40190.21564 | BS45: 52691.28245 | BT45: 64769.60786 | FF45: 600 | FG45: Cost-saving cannot be achieved
I46: Baseline | J46: after | K46: after | AO46: 0.1 | AP46: -11518.52156 | AR46: 5000 | AS46: -11507.07956 | AU46: 0.001 | AV46: -12971.49956 | BA46: =$D$19 -> Absenteeism (sick leave) | BB46: =CHOOSE($D$136,BB22,BB34,H21) -> 0.35 | BC46: =CHOOSE($D$136,BC22,BC34,I21) -> 0.35 | BD46: 0.35 | BE46: 0.35 | BF46: 0.35 | BH46: =$D$23 -> Productivity | BI46: 1614420 | BJ46: 3174246.087 | BK46: 4681324.432 | BL46: 6137438.775 | BM46: 7544312.536 | BO46: =$D$23 -> Productivity | BP46: =BP35 -> 1616034.42 | BQ46: =BP46+BQ35 -> 3177420.333 | BR46: =BQ46+BR35 -> 4686005.756 | BS46: 6143576.214 | BT46: 7551856.849 | CK46: =CF21 -> 300 | CM46: 0 | CN46: -14838.33852 | CO46: -8838.33852 | CP46: -2838.33852 | CQ46: 3161.66148 | CS46: 0 | CT46: -14838.33852 | CU46: -8838.33852 | CV46: -2838.33852 | CW46: 3161.66148 | CY46: 0 | CZ46: -14838.33852 | DA46: -8838.33852 | DB46: -2838.33852 | DC46: 3161.66148 | DM46: 0 | DN46: -20687.07956 | DO46: -14687.07956 | DP46: -8687.079561 | DQ46: -2687.079561 | DS46: 0 | DT46: -20687.07956 | DU46: -14687.07956 | DV46: -8687.079561 | DW46: -2687.079561 | DY46: 0 | DZ46: -20687.07956 | EA46: -14687.07956 | EB46: -8687.079561 | EC46: -2687.079561 | EL46: Reduction in turnover | EM46: 0 | EN46: -9077.581041 | EO46: -3077.581041 | EP46: 2922.418959 | EQ46: 8922.418959 | ES46: 0 | ET46: -9077.581041 | EU46: -3077.581041 | EV46: 2922.418959 | EW46: 8922.418959 | EY46: 0 | EZ46: -9077.581041 | FA46: -3077.581041 | FB46: 2922.418959 | FC46: 8922.418959
I47: =E14*E20*E21 -> 21323.31726 | J47: =I47*(1-H21) -> 13860.15622 | K47: =J47*(1-I21) -> 11088.12498 | AO47: 0.2 | AP47: -11679.96356 | AR47: 10000 | AS47: -11657.07956 | AU47: 0.002 | AV47: -14585.91956 | BA47: =$D$23 -> Productivity | BB47: =CHOOSE($D$136,BB23,BB35,H22) -> 0.001 | BC47: 0.001 | BD47: 0.001 | BE47: 0.001 | BF47: 0.001 | BH47: =$D$27 -> Staff turnover | BI47: 58772.9712 | BJ47: 115558.4506 | BK47: 170423.6481 | BL47: 223433.5008 | BM47: 274650.7497 | BO47: =$D$27 -> Staff turnover | BP47: 45549.05268 | BQ47: =BP47+BQ36 -> 89557.79923 | BR47: 132078.3273 | BS47: 173160.9631 | BT47: 212854.3311 | CM47: 0.1 | CN47: -16638.33852 | CO47: -10638.33852 | CP47: -4638.33852 | CQ47: 1361.66148 | CS47: 0.1 | CT47: -19338.33852 | CU47: -13338.33852 | CV47: -7338.33852 | CW47: -1338.33852 | CY47: 0.1 | CZ47: -30318.33852 | DA47: -24318.33852 | DB47: -18318.33852 | DC47: -12318.33852 | DL47: =DH21 -> 75000 | DM47: 0.1 | DN47: -133187.0796 | DO47: -127187.0796 | DP47: -121187.0796 | DQ47: -115187.0796 | DS47: 0.1 | DT47: -189437.0796 | DU47: -183437.0796 | DV47: -177437.0796 | DW47: -171437.0796 | DY47: 0.1 | DZ47: -245687.0796 | EA47: -239687.0796 | EB47: -233687.0796 | EC47: -227687.0796 | EK47: =EH21 -> 25000 | EM47: 0.1 | EN47: -12827.58104 | EO47: -6827.581041 | EP47: -827.5810415 | EQ47: 5172.418959 | ES47: 0.1 | ET47: -19277.58104 | EU47: -13277.58104 | EV47: -7277.581041 | EW47: -1277.581041 | EY47: 0.1 | EZ47: -46577.58104 | FA47: -40577.58104 | FB47: -34577.58104 | FC47: -28577.58104
AO48: 0.3 | AP48: -11841.40556 | AR48: 15000 | AS48: -11807.07956 | AU48: 0.003 | AV48: -16200.33956 | BA48: =$D$27 -> Staff turnover | BB48: =CHOOSE($D$136,BB24,BB36,H23) -> 0.225 | BC48: 0.225 | BD48: 0.225 | BE48: 0.225 | BF48: 0.225 | BH48: =$D$31 -> Placeholder 1 | BI48: 0 | BJ48: 0 | BK48: 0 | BL48: 0 | BM48: 0 | BO48: =$D$31 -> Placeholder 1 | BP48: 0 | BQ48: 0 | BR48: 0 | BS48: 0 | BT48: 0 | CM48: 0.2 | CN48: -18438.33852 | CO48: -12438.33852 | CP48: -6438.33852 | CQ48: -438.33852 | CS48: 0.2 | CT48: -23838.33852 | CU48: -17838.33852 | CV48: -11838.33852 | CW48: -5838.33852 | CY48: 0.2 | CZ48: -45798.33852 | DA48: -39798.33852 | DB48: -33798.33852 | DC48: -27798.33852 | DM48: 0.2 | DN48: -245687.0796 | DO48: -239687.0796 | DP48: -233687.0796 | DQ48: -227687.0796 | DS48: 0.2 | DT48: -358187.0796 | DU48: -352187.0796 | DV48: -346187.0796 | DW48: -340187.0796 | DY48: 0.2 | DZ48: -470687.0796 | EA48: -464687.0796 | EB48: -458687.0796 | EC48: -452687.0796 | EM48: 0.2 | EN48: -16577.58104 | EO48: -10577.58104 | EP48: -4577.581041 | EQ48: 1422.418959 | ES48: 0.2 | ET48: -29477.58104 | EU48: -23477.58104 | EV48: -17477.58104 | EW48: -11477.58104 | EY48: 0.2 | EZ48: -84077.58104 | FA48: -78077.58104 | FB48: -72077.58104 | FC48: -66077.58104
AO49: 0.4 | AP49: -12002.84756 | AR49: 20000 | AS49: -11957.07956 | AU49: 0.004 | AV49: -17814.75956 | BA49: =$D$31 -> Placeholder 1 | BB49: =CHOOSE($D$136,BB25,BB37,H24) -> 0.1 | BC49: 0.1 | BD49: 0.1 | BE49: 0.1 | BF49: 0.1 | BH49: =$D$35 -> Placeholder 2 | BI49: 0 | BJ49: 0 | BK49: 0 | BL49: 0 | BM49: 0 | BO49: =$D$35 -> Placeholder 2 | BP49: 0 | BQ49: 0 | BR49: 0 | BS49: 0 | BT49: 0 | CM49: 0.3 | CN49: -20238.33852 | CO49: -14238.33852 | CP49: -8238.33852 | CQ49: -2238.33852 | CS49: 0.3 | CT49: -28338.33852 | CU49: -22338.33852 | CV49: -16338.33852 | CW49: -10338.33852 | CY49: 0.3 | CZ49: -61278.33852 | DA49: -55278.33852 | DB49: -49278.33852 | DC49: -43278.33852 | DM49: 0.3 | DN49: -358187.0796 | DO49: -352187.0796 | DP49: -346187.0796 | DQ49: -340187.0796 | DS49: 0.3 | DT49: -526937.0796 | DU49: -520937.0796 | DV49: -514937.0796 | DW49: -508937.0796 | DY49: 0.3 | DZ49: -695687.0796 | EA49: -689687.0796 | EB49: -683687.0796 | EC49: -677687.0796 | EM49: 0.3 | EN49: -20327.58104 | EO49: -14327.58104 | EP49: -8327.581041 | EQ49: -2327.581041 | ES49: 0.3 | ET49: -39677.58104 | EU49: -33677.58104 | EV49: -27677.58104 | EW49: -21677.58104 | EY49: 0.3 | EZ49: -121577.581 | FA49: -115577.581 | FB49: -109577.581 | FC49: -103577.581
AO50: 0.5 | AP50: -12164.28956 | AR50: 25000 | AS50: -12107.07956 | AU50: 0.005 | AV50: -19429.17956 | BA50: =$D$35 -> Placeholder 2 | BB50: =CHOOSE($D$136,BB26,BB38,H25) -> 0.1 | BC50: 0.1 | BD50: 0.1 | BE50: 0.1 | BF50: 0.1 | BH50: Intervention cost | BI50: 0 | BJ50: 0 | BK50: 0 | BL50: 0 | BM50: 0 | BO50: Intervention cost | BP50: =BP39 -> 9330 | BQ50: =BP50+BQ39 -> 9330 | BR50: 9330 | BS50: 9330 | BT50: 9330 | CM50: 0.4 | CN50: -22038.33852 | CO50: -16038.33852 | CP50: -10038.33852 | CQ50: -4038.33852 | CS50: 0.4 | CT50: -32838.33852 | CU50: -26838.33852 | CV50: -20838.33852 | CW50: -14838.33852 | CY50: 0.4 | CZ50: -76758.33852 | DA50: -70758.33852 | DB50: -64758.33852 | DC50: -58758.33852 | DM50: 0.4 | DN50: -470687.0796 | DO50: -464687.0796 | DP50: -458687.0796 | DQ50: -452687.0796 | DS50: 0.4 | DT50: -695687.0796 | DU50: -689687.0796 | DV50: -683687.0796 | DW50: -677687.0796 | DY50: 0.4 | DZ50: -920687.0796 | EA50: -914687.0796 | EB50: -908687.0796 | EC50: -902687.0796 | EM50: 0.4 | EN50: -24077.58104 | EO50: -18077.58104 | EP50: -12077.58104 | EQ50: -6077.581041 | ES50: 0.4 | ET50: -49877.58104 | EU50: -43877.58104 | EV50: -37877.58104 | EW50: -31877.58104 | EY50: 0.4 | EZ50: -159077.581 | FA50: -153077.581 | FB50: -147077.581 | FC50: -141077.581
AO51: 0.6 | AP51: -12325.73156 | AR51: 30000 | AS51: -12257.07956 | AU51: 0.006 | AV51: -21043.59956 | BH51: Total cumulative | BI51: 1694516.288 | BJ51: 3331730.094 | BK51: 4913579.181 | BL51: 6441935.787 | BM51: 7918608.836 | BO51: Total cumulative | BP51: =BP40 -> 1684773.629 | BQ51: =BP51+BQ40 -> 3303559.744 | BR51: =BQ51+BR40 -> 4867604.299 | BS51: =BR51+BS40 -> 6378758.459 | BT51: =BS51+BT40 -> 7838810.787 | CM51: 0.5 | CN51: -23838.33852 | CO51: -17838.33852 | CP51: -11838.33852 | CQ51: -5838.33852 | CS51: 0.5 | CT51: -37338.33852 | CU51: -31338.33852 | CV51: -25338.33852 | CW51: -19338.33852 | CY51: 0.5 | CZ51: -92238.33852 | DA51: -86238.33852 | DB51: -80238.33852 | DC51: -74238.33852 | DM51: 0.5 | DN51: -583187.0796 | DO51: -577187.0796 | DP51: -571187.0796 | DQ51: -565187.0796 | DS51: 0.5 | DT51: -864437.0796 | DU51: -858437.0796 | DV51: -852437.0796 | DW51: -846437.0796 | DY51: 0.5 | DZ51: -1145687.08 | EA51: -1139687.08 | EB51: -1133687.08 | EC51: -1127687.08 | EM51: 0.5 | EN51: -27827.58104 | EO51: -21827.58104 | EP51: -15827.58104 | EQ51: -9827.581041 | ES51: 0.5 | ET51: -60077.58104 | EU51: -54077.58104 | EV51: -48077.58104 | EW51: -42077.58104 | EY51: 0.5 | EZ51: -196577.581 | FA51: -190577.581 | FB51: -184577.581 | FC51: -178577.581
AO52: 0.7 | AP52: -12487.17356 | AR52: 35000 | AS52: -12407.07956 | AU52: 0.007 | AV52: -22658.01956 | CM52: 0.6 | CN52: -25638.33852 | CO52: -19638.33852 | CP52: -13638.33852 | CQ52: -7638.33852 | CS52: 0.6 | CT52: -41838.33852 | CU52: -35838.33852 | CV52: -29838.33852 | CW52: -23838.33852 | CY52: 0.6 | CZ52: -107718.3385 | DA52: -101718.3385 | DB52: -95718.33852 | DC52: -89718.33852 | DM52: 0.6 | DN52: -695687.0796 | DO52: -689687.0796 | DP52: -683687.0796 | DQ52: -677687.0796 | DS52: 0.6 | DT52: -1033187.08 | DU52: -1027187.08 | DV52: -1021187.08 | DW52: -1015187.08 | DY52: 0.6 | DZ52: -1370687.08 | EA52: -1364687.08 | EB52: -1358687.08 | EC52: -1352687.08 | EM52: 0.6 | EN52: -31577.58104 | EO52: -25577.58104 | EP52: -19577.58104 | EQ52: -13577.58104 | ES52: 0.6 | ET52: -70277.58104 | EU52: -64277.58104 | EV52: -58277.58104 | EW52: -52277.58104 | EY52: 0.6 | EZ52: -234077.581 | FA52: -228077.581 | FB52: -222077.581 | FC52: -216077.581
AO53: 0.8 | AP53: -12648.61556 | AR53: 40000 | AS53: -12557.07956 | AU53: 0.008 | AV53: -24272.43956 | CM53: 0.7 | CN53: -27438.33852 | CO53: -21438.33852 | CP53: -15438.33852 | CQ53: -9438.33852 | CS53: 0.7 | CT53: -46338.33852 | CU53: -40338.33852 | CV53: -34338.33852 | CW53: -28338.33852 | CY53: 0.7 | CZ53: -123198.3385 | DA53: -117198.3385 | DB53: -111198.3385 | DC53: -105198.3385 | DM53: 0.7 | DN53: -808187.0796 | DO53: -802187.0796 | DP53: -796187.0796 | DQ53: -790187.0796 | DS53: 0.7 | DT53: -1201937.08 | DU53: -1195937.08 | DV53: -1189937.08 | DW53: -1183937.08 | DY53: 0.7 | DZ53: -1595687.08 | EA53: -1589687.08 | EB53: -1583687.08 | EC53: -1577687.08 | EM53: 0.7 | EN53: -35327.58104 | EO53: -29327.58104 | EP53: -23327.58104 | EQ53: -17327.58104 | ES53: 0.7 | ET53: -80477.58104 | EU53: -74477.58104 | EV53: -68477.58104 | EW53: -62477.58104 | EY53: 0.7 | EZ53: -271577.581 | FA53: -265577.581 | FB53: -259577.581 | FC53: -253577.581
AO54: 0.9 | AP54: -12810.05756 | AR54: 45000 | AS54: -12707.07956 | AU54: 0.009 | AV54: -25886.85956 | CM54: 0.8 | CN54: -29238.33852 | CO54: -23238.33852 | CP54: -17238.33852 | CQ54: -11238.33852 | CS54: 0.8 | CT54: -50838.33852 | CU54: -44838.33852 | CV54: -38838.33852 | CW54: -32838.33852 | CY54: 0.8 | CZ54: -138678.3385 | DA54: -132678.3385 | DB54: -126678.3385 | DC54: -120678.3385 | DM54: 0.8 | DN54: -920687.0796 | DO54: -914687.0796 | DP54: -908687.0796 | DQ54: -902687.0796 | DS54: 0.8 | DT54: -1370687.08 | DU54: -1364687.08 | DV54: -1358687.08 | DW54: -1352687.08 | DY54: 0.8 | DZ54: -1820687.08 | EA54: -1814687.08 | EB54: -1808687.08 | EC54: -1802687.08 | EM54: 0.8 | EN54: -39077.58104 | EO54: -33077.58104 | EP54: -27077.58104 | EQ54: -21077.58104 | ES54: 0.8 | ET54: -90677.58104 | EU54: -84677.58104 | EV54: -78677.58104 | EW54: -72677.58104 | EY54: 0.8 | EZ54: -309077.581 | FA54: -303077.581 | FB54: -297077.581 | FC54: -291077.581
AO55: 1 | AP55: -12971.49956 | AR55: 50000 | AS55: -12857.07956 | AU55: 0.01 | AV55: -27501.27956 | CM55: 0.9 | CN55: -31038.33852 | CO55: -25038.33852 | CP55: -19038.33852 | CQ55: -13038.33852 | CS55: 0.9 | CT55: -55338.33852 | CU55: -49338.33852 | CV55: -43338.33852 | CW55: -37338.33852 | CY55: 0.9 | CZ55: -154158.3385 | DA55: -148158.3385 | DB55: -142158.3385 | DC55: -136158.3385 | DM55: 0.9 | DN55: -1033187.08 | DO55: -1027187.08 | DP55: -1021187.08 | DQ55: -1015187.08 | DS55: 0.9 | DT55: -1539437.08 | DU55: -1533437.08 | DV55: -1527437.08 | DW55: -1521437.08 | DY55: 0.9 | DZ55: -2045687.08 | EA55: -2039687.08 | EB55: -2033687.08 | EC55: -2027687.08 | EM55: 0.9 | EN55: -42827.58104 | EO55: -36827.58104 | EP55: -30827.58104 | EQ55: -24827.58104 | ES55: 0.9 | ET55: -100877.581 | EU55: -94877.58104 | EV55: -88877.58104 | EW55: -82877.58104 | EY55: 0.9 | EZ55: -346577.581 | FA55: -340577.581 | FB55: -334577.581 | FC55: -328577.581
AO56: =AJ22 -> 1 | AP56: =AP44 -> -12971.49956 | AR56: =AJ23 -> 53814 | AS56: =AS44 -> -12971.49956 | AU56: =AJ24 -> 0.001 | AV56: =AV44 -> -12971.49956 | CM56: 1 | CN56: -32838.33852 | CO56: -26838.33852 | CP56: -20838.33852 | CQ56: -14838.33852 | CS56: 1 | CT56: -59838.33852 | CU56: -53838.33852 | CV56: -47838.33852 | CW56: -41838.33852 | CY56: 1 | CZ56: -169638.3385 | DA56: -163638.3385 | DB56: -157638.3385 | DC56: -151638.3385 | DM56: 1 | DN56: -1145687.08 | DO56: -1139687.08 | DP56: -1133687.08 | DQ56: -1127687.08 | DS56: 1 | DT56: -1708187.08 | DU56: -1702187.08 | DV56: -1696187.08 | DW56: -1690187.08 | DY56: 1 | DZ56: -2270687.08 | EA56: -2264687.08 | EB56: -2258687.08 | EC56: -2252687.08 | EM56: 1 | EN56: -46577.58104 | EO56: -40577.58104 | EP56: -34577.58104 | EQ56: -28577.58104 | ES56: 1 | ET56: -111077.581 | EU56: -105077.581 | EV56: -99077.58104 | EW56: -93077.58104 | EY56: 1 | EZ56: -384077.581 | FA56: -378077.581 | FB56: -372077.581 | FC56: -366077.581
AO58: Staff turnover
AO59: Anunal rate of turnover | AP59: ='Base case'!G19 -> -12971.49956 | AR59: Cost per case | AS59: ='Base case'!G19 -> -12971.49956 | AU59: Reduction in turnover | AV59: ='Base case'!G19 -> -12971.49956
AO60: 0 | AP60: 252.4189585 | AR60: 0 | AS60: 252.4189585 | AU60: 0 | AV60: 252.4189585
AO61: 0.05 | AP61: -4609.315791 | AR61: 5000 | AS61: -4337.581041 | AU61: 0.05 | AV61: -2686.229601
AO62: 0.1 | AP62: -9471.050541 | AR62: 10000 | AS62: -8927.581041 | AU62: 0.1 | AV62: -5624.878161
AO63: 0.15 | AP63: -14332.78529 | AR63: 15000 | AS63: -13517.58104 | AU63: 0.15 | AV63: -8563.526721
AO64: 0.2 | AP64: -19194.52004 | AR64: 20000 | AS64: -18107.58104 | AU64: 0.2 | AV64: -11502.17528
AO65: 0.25 | AP65: -24056.25479 | AR65: 25000 | AS65: -22697.58104 | AU65: 0.25 | AV65: -14440.82384
AO66: 0.3 | AP66: -28917.98954 | AR66: 30000 | AS66: -27287.58104 | AU66: 0.3 | AV66: -17379.4724
AO67: 0.35 | AP67: -33779.72429 | AR67: 35000 | AS67: -31877.58104 | AU67: 0.35 | AV67: -20318.12096
AO68: 0.4 | AP68: -38641.45904 | AR68: 40000 | AS68: -36467.58104 | AU68: 0.4 | AV68: -23256.76952
AO69: 0.45 | AP69: -43503.19379 | AR69: 45000 | AS69: -41057.58104 | AU69: 0.45 | AV69: -26195.41808
AO70: 0.5 | AP70: -48364.92854 | AR70: 50000 | AS70: -45647.58104 | AU70: 0.5 | AV70: -29134.06664
AO71: =AJ27 -> 0.136 | AP71: =AP59 -> -12971.49956 | AR71: =AJ29 -> 14405.14 | AS71: =AS59 -> -12971.49956 | AU71: =AJ28 -> 0.225 | AV71: =AV59 -> -12971.49956
AO73: Healthcare costs
AO74: % affected | AP74: ='Base case'!G19 -> -12971.49956 | AR74: Cost per person | AS74: ='Base case'!G19 -> -12971.49956 | AU74: Reduction in healthcare use | AV74: ='Base case'!G19 -> -12971.49956
AO75: 0 | AP75: -12971.49956 | AR75: 0 | AS75: -12971.49956 | AU75: 0 | AV75: -12971.49956
AO76: 0.05 | AP76: -12971.49956 | AR76: 200 | AS76: -12971.49956 | AU76: 0.1 | AV76: -12971.49956
AO77: 0.1 | AP77: -12971.49956 | AR77: 400 | AS77: -12971.49956 | AU77: 0.2 | AV77: -12971.49956
AO78: 0.15 | AP78: -12971.49956 | AR78: 600 | AS78: -12971.49956 | AU78: 0.3 | AV78: -12971.49956
AO79: 0.2 | AP79: -12971.49956 | AR79: 800 | AS79: -12971.49956 | AU79: 0.4 | AV79: -12971.49956
AO80: 0.25 | AP80: -12971.49956 | AR80: 1000 | AS80: -12971.49956 | AU80: 0.5 | AV80: -12971.49956
AO81: 0.3 | AP81: -12971.49956 | AR81: 1200 | AS81: -12971.49956 | AU81: 0.6 | AV81: -12971.49956
AO82: 0.35 | AP82: -12971.49956 | AR82: 1400 | AS82: -12971.49956 | AU82: 0.7 | AV82: -12971.49956
AO83: 0.4 | AP83: -12971.49956 | AR83: 1600 | AS83: -12971.49956 | AU83: 0.8 | AV83: -12971.49956
AO84: 0.45 | AP84: -12971.49956 | AR84: 1800 | AS84: -12971.49956 | AU84: 0.9 | AV84: -12971.49956
AO85: 0.5 | AP85: -12971.49956 | AR85: 2000 | AS85: -12971.49956 | AU85: 1 | AV85: -12971.49956
AO86: =AJ32 -> 0.22 | AP86: =AP74 -> -12971.49956 | AR86: =AJ34 -> 840.97 | AS86: =AS74 -> -12971.49956 | AU86: =AJ33 -> 0.1 | AV86: =AV74 -> -12971.49956
AO88: Other societal costs
AO89: % affected | AP89: ='Base case'!G19 -> -12971.49956 | AR89: Cost per person | AS89: ='Base case'!G19 -> -12971.49956 | AU89: Reduction in societal costs | AV89: ='Base case'!G19 -> -12971.49956
AO90: 0 | AP90: -12971.49956 | AR90: 0 | AS90: -12971.49956 | AU90: 0 | AV90: -12971.49956
AO91: 0.05 | AP91: -12971.49956 | AR91: 1000 | AS91: -12971.49956 | AU91: 0.05 | AV91: -12971.49956
AO92: 0.1 | AP92: -12971.49956 | AR92: 2000 | AS92: -12971.49956 | AU92: 0.1 | AV92: -12971.49956
AO93: 0.15 | AP93: -12971.49956 | AR93: 3000 | AS93: -12971.49956 | AU93: 0.15 | AV93: -12971.49956
AO94: 0.2 | AP94: -12971.49956 | AR94: 4000 | AS94: -12971.49956 | AU94: 0.2 | AV94: -12971.49956
AO95: 0.25 | AP95: -12971.49956 | AR95: 5000 | AS95: -12971.49956 | AU95: 0.25 | AV95: -12971.49956
AO96: 0.3 | AP96: -12971.49956 | AR96: 6000 | AS96: -12971.49956 | AU96: 0.3 | AV96: -12971.49956
AO97: 0.35 | AP97: -12971.49956 | AR97: 7000 | AS97: -12971.49956 | AU97: 0.35 | AV97: -12971.49956
AO98: 0.4 | AP98: -12971.49956 | AR98: 8000 | AS98: -12971.49956 | AU98: 0.4 | AV98: -12971.49956
AO99: 0.45 | AP99: -12971.49956 | AR99: 9000 | AS99: -12971.49956 | AU99: 0.45 | AV99: -12971.49956
AO100: 0.5 | AP100: -12971.49956 | AR100: 10000 | AS100: -12971.49956 | AU100: 0.5 | AV100: -12971.49956
AO101: =AJ37 -> 0.05 | AP101: =AP89 -> -12971.49956 | AR101: =AJ39 -> 5000 | AS101: =AS89 -> -12971.49956 | AU101: =AJ38 -> 0.1 | AV101: =AV89 -> -12971.49956
AO103: Difference in effectiveness
AO104: =CONCATENATE("Reduction in ",AL102) -> Reduction in | AP104: ='Base case'!G19 -> -12971.49956 | AR104: =CONCATENATE("Increase in ",AL106) -> Increase in | AS104: ='Base case'!G19 -> -12971.49956 | AU104: =CONCATENATE("Reduction in ",AL110) -> Reduction in | AV104: ='Base case'!G19 -> -12971.49956 | AX104: =CONCATENATE("Reduction in ",AL114) -> Reduction in | AY104: ='Base case'!G19 -> -12971.49956 | BA104: =CONCATENATE("Reduction in ",AL118) -> Reduction in | BB104: ='Base case'!G19 -> -12971.49956
AO105: 0.5 | AP105: -12971.49956 | AR105: 0.5 | AS105: -12971.49956 | AU105: 0.5 | AV105: -12971.49956 | AX105: 0.5 | AY105: -12971.49956 | BA105: 0.5 | BB105: -12971.49956
AO106: 0.6 | AP106: -12971.49956 | AR106: 0.6 | AS106: -12971.49956 | AU106: 0.6 | AV106: -12971.49956 | AX106: 0.6 | AY106: -12971.49956 | BA106: 0.6 | BB106: -12971.49956
AO107: 0.7 | AP107: -12971.49956 | AR107: 0.7 | AS107: -12971.49956 | AU107: 0.7 | AV107: -12971.49956 | AX107: 0.7 | AY107: -12971.49956 | BA107: 0.7 | BB107: -12971.49956
AO108: 0.8 | AP108: -12971.49956 | AR108: 0.8 | AS108: -12971.49956 | AU108: 0.8 | AV108: -12971.49956 | AX108: 0.8 | AY108: -12971.49956 | BA108: 0.8 | BB108: -12971.49956
AO109: 0.9 | AP109: -12971.49956 | AR109: 0.9 | AS109: -12971.49956 | AU109: 0.9 | AV109: -12971.49956 | AX109: 0.9 | AY109: -12971.49956 | BA109: 0.9 | BB109: -12971.49956
AO110: 1 | AP110: -12971.49956 | AR110: 1 | AS110: -12971.49956 | AU110: 1 | AV110: -12971.49956 | AX110: 1 | AY110: -12971.49956 | BA110: 1 | BB110: -12971.49956
AO111: 1.1 | AP111: -12971.49956 | AR111: 1.1 | AS111: -12971.49956 | AU111: 1.1 | AV111: -12971.49956 | AX111: 1.1 | AY111: -12971.49956 | BA111: 1.1 | BB111: -12971.49956
AO112: 1.2 | AP112: -12971.49956 | AR112: 1.2 | AS112: -12971.49956 | AU112: 1.2 | AV112: -12971.49956 | AX112: 1.2 | AY112: -12971.49956 | BA112: 1.2 | BB112: -12971.49956
AO113: 1.3 | AP113: -12971.49956 | AR113: 1.3 | AS113: -12971.49956 | AU113: 1.3 | AV113: -12971.49956 | AX113: 1.3 | AY113: -12971.49956 | BA113: 1.3 | BB113: -12971.49956
AO114: 1.4 | AP114: -12971.49956 | AR114: 1.4 | AS114: -12971.49956 | AU114: 1.4 | AV114: -12971.49956 | AX114: 1.4 | AY114: -12971.49956 | BA114: 1.4 | BB114: -12971.49956
AO115: 1.5 | AP115: -12971.49956 | AR115: 1.5 | AS115: -12971.49956 | AU115: 1.5 | AV115: -12971.49956 | AX115: 1.5 | AY115: -12971.49956 | BA115: 1.5 | BB115: -12971.49956
D116: Include? | AO116: =H28 -> 0.9 | AP116: =AP104 -> -12971.49956 | AR116: =H29 -> 0.9 | AS116: =AS104 -> -12971.49956 | AU116: =H30 -> 0.9 | AV116: =AV104 -> -12971.49956 | AX116: =H31 -> 0.9 | AY116: =AY104 -> -12971.49956 | BA116: =H32 -> 0.9 | BB116: =BB104 -> -12971.49956
D117: Absenteeism | E117: TRUE | G117: =IF(E117=TRUE,1,0) -> 1
D118: Productivity | E118: TRUE | G118: =IF(E118=TRUE,1,0) -> 1
D119: Staff turnover | E119: TRUE | G119: 1
D120: Health care costs | E120: FALSE | G120: 0
D121: Societal costs | E121: FALSE | G121: 0
D125: 1 year
D126: 2 years
D127: 3 years
D128: 4 years
D129: 5 years
D130: 1
D132: Effectiveness method | E132: For IF
D133: =IF($D$130=1,"N/A for one year time horizon",E133) -> N/A for one year time horizon | E133: Same effectiveness each year
D134: =IF($D$130=1,"N/A for one year time horizon",E134) -> N/A for one year time horizon | E134: % difference in effectiveness each year
D135: N/A for one year time horizon | E135: User input effectiveness each year
D136: 1
D217: Number of days lost per person (absenteeism)
D219: 16-24 | E219: 0.012
D220: 25-34 | E220: 0.015
D221: 35-49 | E221: 0.02
D222: 50-64 | E222: 0.028
D223: 65+ | E223: 0.023
D225: http://www.ons.gov.uk/ons/dcp171778_412021.pdf
E226: Number employed (000s)
D227: 16-65 | E227: 29894 | F227: =E227/E229 -> 0.9632660953 | G227: =AVERAGE(E219:E222) -> 0.01875
D228: 65+ | E228: 1140 | F228: =E228/E229 -> 0.03673390475 | G228: =E223 -> 0.023
E229: =SUM(E227:E228) -> 31034 | F229: =SUM(F227:F228) -> 1 | G229: =SUMPRODUCT(G227:G228,E227:E228)/SUM(E227:E228) -> 0.0189061191
G230: =253*G229 -> 4.783248131
E233: CPI
D234: 2007 Q1 | E234: 103.7
D235: 2015 Dec | E235: 128.5
E236: =E235/E234 -> 1.239151398
E237: =11625*E236 -> 14405.135
E239: =528*52 -> 27456

Sheet Base case
C4: XXXXXXXXXXX
D10: Display results for:
E12: No intervention | F12: Intervention | G12: Incremental cost
D13: Cost of absenteeism | E13: =CHOOSE(Inputs!$D$130,Inputs!BI45,Inputs!BJ45,Inputs!BK45,Inputs!BL45,Inputs!BM45) -> 21323.31726 | F13: =CHOOSE(Inputs!$D$130,Inputs!BP45,Inputs!BQ45,Inputs!BR45,Inputs!BS45,Inputs!BT45) -> 13860.15622 | G13: =F13-E13 -> -7463.161041
D14: Productivity | E14: =CHOOSE(Inputs!$D$130,Inputs!BI46,Inputs!BJ46,Inputs!BK46,Inputs!BL46,Inputs!BM46) -> 1614420 | F14: =CHOOSE(Inputs!$D$130,Inputs!BP46,Inputs!BQ46,Inputs!BR46,Inputs!BS46,Inputs!BT46) -> 1616034.42 | G14: =E14-F14 -> -1614.42
D15: Cost of staff turnover | E15: =CHOOSE(Inputs!$D$130,Inputs!BI47,Inputs!BJ47,Inputs!BK47,Inputs!BL47,Inputs!BM47) -> 58772.9712 | F15: =CHOOSE(Inputs!$D$130,Inputs!BP47,Inputs!BQ47,Inputs!BR47,Inputs!BS47,Inputs!BT47) -> 45549.05268 | G15: =F15-E15 -> -13223.91852
D16: =Inputs!D31 -> Placeholder 1 | E16: =CHOOSE(Inputs!$D$130,Inputs!BI48,Inputs!BJ48,Inputs!BK48,Inputs!BL48,Inputs!BM48) -> 0 | F16: =CHOOSE(Inputs!$D$130,Inputs!BP48,Inputs!BQ48,Inputs!BR48,Inputs!BS48,Inputs!BT48) -> 0 | G16: =F16-E16 -> 0
D17: =Inputs!D35 -> Placeholder 2 | E17: =CHOOSE(Inputs!$D$130,Inputs!BI49,Inputs!BJ49,Inputs!BK49,Inputs!BL49,Inputs!BM49) -> 0 | F17: =CHOOSE(Inputs!$D$130,Inputs!BP49,Inputs!BQ49,Inputs!BR49,Inputs!BS49,Inputs!BT49) -> 0 | G17: 0
D18: Intervention cost | E18: =CHOOSE(Inputs!$D$130,Inputs!BI50,Inputs!BJ50,Inputs!BK50,Inputs!BL50,Inputs!BM50) -> 0 | F18: =CHOOSE(Inputs!$D$130,Inputs!BP50,Inputs!BQ50,Inputs!BR50,Inputs!BS50,Inputs!BT50) -> 9330 | G18: 9330
D19: Total | E19: =SUM(E13:E18) -> 1694516.288 | F19: =SUM(F13:F18) -> 1684773.629 | G19: =SUM(G13:G18) -> -12971.49956
D126: Slider chart on/off switch | E126: 2
D127: 1 = on, 2= off

Sheet Base case disaggregated
C4: XXXXXXXXXXX
D11: Before intervention
E12: Cumulative discounted results
E13: Year 1 | F13: Year 2 | G13: Year 3 | H13: Year 4 | I13: Year 5
D14: ='Base case'!D13 -> Cost of absenteeism | E14: =Inputs!BI45 -> 21323.31726 | F14: =Inputs!BJ45 -> 41925.55616 | G14: =Inputs!BK45 -> 61831.10099 | H14: =Inputs!BL45 -> 81063.51146 | I14: =Inputs!BM45 -> 99645.55055 | AO14: Before | AP14: After | AQ14: Difference
D15: ='Base case'!D14 -> Productivity | E15: =Inputs!BI46 -> 1614420 | F15: =Inputs!BJ46 -> 3174246.087 | G15: =Inputs!BK46 -> 4681324.432 | H15: =Inputs!BL46 -> 6137438.775 | I15: =Inputs!BM46 -> 7544312.536 | AN15: Cost of absenteeism | AO15: 25502.4 | AP15: 22952.16 | AQ15: -2550.24
D16: ='Base case'!D15 -> Cost of staff turnover | E16: =Inputs!BI47 -> 58772.9712 | F16: =Inputs!BJ47 -> 115558.4506 | G16: =Inputs!BK47 -> 170423.6481 | H16: =Inputs!BL47 -> 223433.5008 | I16: =Inputs!BM47 -> 274650.7497 | AN16: Income from increased productivity | AO16: 1185660 | AP16: 1197516.6 | AQ16: -11856.6
D17: ='Base case'!D16 -> Placeholder 1 | E17: =Inputs!BI48 -> 0 | F17: =Inputs!BJ48 -> 0 | G17: =Inputs!BK48 -> 0 | H17: =Inputs!BL48 -> 0 | I17: =Inputs!BM48 -> 0 | AN17: Cost of staff turnover | AO17: 50986.10656 | AP17: 42063.53791 | AQ17: -8922.568648
D18: ='Base case'!D17 -> Placeholder 2 | E18: =Inputs!BI49 -> 0 | F18: =Inputs!BJ49 -> 0 | G18: =Inputs!BK49 -> 0 | H18: =Inputs!BL49 -> 0 | I18: =Inputs!BM49 -> 0 | AN18: Healthcare costs | AO18: 0 | AP18: 0 | AQ18: 0
D19: ='Base case'!D18 -> Intervention cost | E19: =Inputs!BI50 -> 0 | F19: =Inputs!BJ50 -> 0 | G19: =Inputs!BK50 -> 0 | H19: =Inputs!BL50 -> 0 | I19: =Inputs!BM50 -> 0 | AN19: Societal costs | AO19: 0 | AP19: 0 | AQ19: 0
D20: Total cumulative | E20: =Inputs!BI51 -> 1694516.288 | F20: =Inputs!BJ51 -> 3331730.094 | G20: =Inputs!BK51 -> 4913579.181 | H20: =Inputs!BL51 -> 6441935.787 | I20: =Inputs!BM51 -> 7918608.836 | AN20: Intervention cost | AO20: 0 | AP20: 6000 | AQ20: 6000
AN21: Total | AO21: 1262148.507 | AP21: 1268532.298 | AQ21: -17329.40865
D22: After intervention
E23: Cumulative discounted results
E24: Year 1 | F24: Year 2 | G24: Year 3 | H24: Year 4 | I24: Year 5
D25: ='Base case'!D13 -> Cost of absenteeism | E25: =Inputs!BP45 -> 13860.15622 | F25: =Inputs!BQ45 -> 27251.6115 | G25: =Inputs!BR45 -> 40190.21564 | H25: =Inputs!BS45 -> 52691.28245 | I25: =Inputs!BT45 -> 64769.60786
D26: ='Base case'!D14 -> Productivity | E26: =Inputs!BP46 -> 1616034.42 | F26: =Inputs!BQ46 -> 3177420.333 | G26: =Inputs!BR46 -> 4686005.756 | H26: =Inputs!BS46 -> 6143576.214 | I26: =Inputs!BT46 -> 7551856.849
D27: ='Base case'!D15 -> Cost of staff turnover | E27: =Inputs!BP47 -> 45549.05268 | F27: =Inputs!BQ47 -> 89557.79923 | G27: =Inputs!BR47 -> 132078.3273 | H27: =Inputs!BS47 -> 173160.9631 | I27: =Inputs!BT47 -> 212854.3311
D28: ='Base case'!D16 -> Placeholder 1 | E28: =Inputs!BP48 -> 0 | F28: =Inputs!BQ48 -> 0 | G28: =Inputs!BR48 -> 0 | H28: =Inputs!BS48 -> 0 | I28: =Inputs!BT48 -> 0
D29: ='Base case'!D17 -> Placeholder 2 | E29: =Inputs!BP49 -> 0 | F29: =Inputs!BQ49 -> 0 | G29: =Inputs!BR49 -> 0 | H29: =Inputs!BS49 -> 0 | I29: =Inputs!BT49 -> 0
D30: ='Base case'!D18 -> Intervention cost | E30: =Inputs!BP50 -> 9330 | F30: =Inputs!BQ50 -> 9330 | G30: =Inputs!BR50 -> 9330 | H30: =Inputs!BS50 -> 9330 | I30: =Inputs!BT50 -> 9330
D31: Total cumulative | E31: =Inputs!BP51 -> 1684773.629 | F31: =Inputs!BQ51 -> 3303559.744 | G31: =Inputs!BR51 -> 4867604.299 | H31: =Inputs!BS51 -> 6378758.459 | I31: =Inputs!BT51 -> 7838810.787
AW37: Live
AU38: Death | AV38: TRUE | AW38: =IF(AV38=TRUE,E39,"") -> 0
D126: Slider chart on/off switch | E126: 2
D127: 1 = on, 2= off

Sheet SA
C4: XXXXXXXXXXX
AO13: Before | AP13: After | AQ13: Difference
AN14: Cost of absenteeism | AO14: 25502.4 | AP14: 22952.16 | AQ14: -2550.24
AN15: Income from increased productivity | AO15: 1185660 | AP15: 1197516.6 | AQ15: -11856.6
AN16: Cost of staff turnover | AO16: 50986.10656 | AP16: 42063.53791 | AQ16: -8922.568648
AN17: Healthcare costs | AO17: 0 | AP17: 0 | AQ17: 0
AN18: Societal costs | AO18: 0 | AP18: 0 | AQ18: 0
AN19: Intervention cost | AO19: 0 | AP19: 6000 | AQ19: 6000
AN20: Total | AO20: 1262148.507 | AP20: 1268532.298 | AQ20: -17329.40865
AW36: Live
AU37: Death | AV37: TRUE | AW37: =IF(AV37=TRUE,E38,"") -> 0
E113: Cost of intervention per person
E114: =Inputs!D19 -> Absenteeism (sick leave)
E115: =Inputs!D23 -> Productivity
E116: =Inputs!D27 -> Staff turnover
E117: =Inputs!D31 -> Placeholder 1
E118: =Inputs!D35 -> Placeholder 2
E119: Percentage difference in effectiveness each year
E120: 2

Sheet SAAbs
C4: XXXXXXXXXXX
AO13: Before | AP13: After | AQ13: Difference
AN14: Cost of absenteeism | AO14: 25502.4 | AP14: 22952.16 | AQ14: -2550.24
AN15: Income from increased productivity | AO15: 1185660 | AP15: 1197516.6 | AQ15: -11856.6
AN16: Cost of staff turnover | AO16: 50986.10656 | AP16: 42063.53791 | AQ16: -8922.568648
AN17: Healthcare costs | AO17: 0 | AP17: 0 | AQ17: 0
AN18: Societal costs | AO18: 0 | AP18: 0 | AQ18: 0
AN19: Intervention cost | AO19: 0 | AP19: 6000 | AQ19: 6000
AN20: Total | AO20: 1262148.507 | AP20: 1268532.298 | AQ20: -17329.40865
AW36: Live
AU37: Death | AV37: TRUE | AW37: =IF(AV37=TRUE,E38,"") -> 0
E113: Cost of intervention per person
E114: Absenteeism
E115: Productivity
E116: Staff turnover
E117: Health care costs
E118: Other societal costs
E119: 5

Sheet SAProd
C4: XXXXXXXXXXX
AO13: Before | AP13: After | AQ13: Difference
AN14: Cost of absenteeism | AO14: 25502.4 | AP14: 22952.16 | AQ14: -2550.24
AN15: Income from increased productivity | AO15: 1185660 | AP15: 1197516.6 | AQ15: -11856.6
AN16: Cost of staff turnover | AO16: 50986.10656 | AP16: 42063.53791 | AQ16: -8922.568648
AN17: Healthcare costs | AO17: 0 | AP17: 0 | AQ17: 0
AN18: Societal costs | AO18: 0 | AP18: 0 | AQ18: 0
AN19: Intervention cost | AO19: 0 | AP19: 6000 | AQ19: 6000
AN20: Total | AO20: 1262148.507 | AP20: 1268532.298 | AQ20: -17329.40865
AW36: Live
AU37: Death | AV37: TRUE | AW37: =IF(AV37=TRUE,E38,"") -> 0
E113: Cost of intervention per person
E114: Absenteeism
E115: Productivity
E116: Staff turnover
E117: Health care costs
E118: Other societal costs
E119: 3

Sheet SATurnover
C4: XXXXXXXXXXX
AO13: Before | AP13: After | AQ13: Difference
AN14: Cost of absenteeism | AO14: 25502.4 | AP14: 22952.16 | AQ14: -2550.24
AN15: Income from increased productivity | AO15: 1185660 | AP15: 1197516.6 | AQ15: -11856.6
AN16: Cost of staff turnover | AO16: 50986.10656 | AP16: 42063.53791 | AQ16: -8922.568648
AN17: Healthcare costs | AO17: 0 | AP17: 0 | AQ17: 0
AN18: Societal costs | AO18: 0 | AP18: 0 | AQ18: 0
AN19: Intervention cost | AO19: 0 | AP19: 6000 | AQ19: 6000
AN20: Total | AO20: 1262148.507 | AP20: 1268532.298 | AQ20: -17329.40865
AW36: Live
AU37: Death | AV37: TRUE | AW37: =IF(AV37=TRUE,E38,"") -> 0
E113: Cost of intervention per person
E114: Absenteeism
E115: Productivity
E116: Staff turnover
E117: Health care costs
E118: Other societal costs
E119: 3

Sheet SAHealth
C4: XXXXXXXXXXX
AO13: Before | AP13: After | AQ13: Difference
AN14: Cost of absenteeism | AO14: 25502.4 | AP14: 22952.16 | AQ14: -2550.24
AN15: Income from increased productivity | AO15: 1185660 | AP15: 1197516.6 | AQ15: -11856.6
AN16: Cost of staff turnover | AO16: 50986.10656 | AP16: 42063.53791 | AQ16: -8922.568648
AN17: Healthcare costs | AO17: 0 | AP17: 0 | AQ17: 0
AN18: Societal costs | AO18: 0 | AP18: 0 | AQ18: 0
AN19: Intervention cost | AO19: 0 | AP19: 6000 | AQ19: 6000
AN20: Total | AO20: 1262148.507 | AP20: 1268532.298 | AQ20: -17329.40865
AW36: Live
AU37: Death | AV37: TRUE | AW37: =IF(AV37=TRUE,E38,"") -> 0
E113: Cost of intervention per person
E114: Absenteeism
E115: Productivity
E116: Staff turnover
E117: Health care costs
E118: Other societal costs
E119: 1

Sheet SASoc
C4: XXXXXXXXXXX
AO13: Before | AP13: After | AQ13: Difference
AN14: Cost of absenteeism | AO14: 25502.4 | AP14: 22952.16 | AQ14: -2550.24
AN15: Income from increased productivity | AO15: 1185660 | AP15: 1197516.6 | AQ15: -11856.6
AN16: Cost of staff turnover | AO16: 50986.10656 | AP16: 42063.53791 | AQ16: -8922.568648
AN17: Healthcare costs | AO17: 0 | AP17: 0 | AQ17: 0
AN18: Societal costs | AO18: 0 | AP18: 0 | AQ18: 0
AN19: Intervention cost | AO19: 0 | AP19: 6000 | AQ19: 6000
AN20: Total | AO20: 1262148.507 | AP20: 1268532.298 | AQ20: -17329.40865
AW36: Live
AU37: Death | AV37: TRUE | AW37: =IF(AV37=TRUE,E38,"") -> 0
E113: Cost of intervention per person
E114: Absenteeism
E115: Productivity
E116: Staff turnover
E117: Health care costs
E118: Other societal costs
E119: 2

Sheet SAEff
C4: XXXXXXXXXXX
AO13: Before | AP13: After | AQ13: Difference
AN14: Cost of absenteeism | AO14: 25502.4 | AP14: 22952.16 | AQ14: -2550.24
AN15: Income from increased productivity | AO15: 1185660 | AP15: 1197516.6 | AQ15: -11856.6
AN16: Cost of staff turnover | AO16: 50986.10656 | AP16: 42063.53791 | AQ16: -8922.568648
AN17: Healthcare costs | AO17: 0 | AP17: 0 | AQ17: 0
AN18: Societal costs | AO18: 0 | AP18: 0 | AQ18: 0
AN19: Intervention cost | AO19: 0 | AP19: 6000 | AQ19: 6000
AN20: Total | AO20: 1262148.507 | AP20: 1268532.298 | AQ20: -17329.40865
AW36: Live
AU37: Death | AV37: TRUE | AW37: =IF(AV37=TRUE,E38,"") -> 0

Sheet Slider
C4: XXXXXXXXXXX
E11: Before | F11: After | G11: Cost savings
D12: Cost of absenteeism | E12: ='Base case'!E13 -> 21323.31726 | F12: ='Base case'!F13 -> 13860.15622 | G12: ='Base case'!G13 -> -7463.161041
D13: Income from productivity | E13: ='Base case'!E14 -> 1614420 | F13: ='Base case'!F14 -> 1616034.42 | G13: ='Base case'!G14 -> -1614.42 | AO13: Before | AP13: After | AQ13: Difference
D14: Cost of staff turnover | E14: ='Base case'!E15 -> 58772.9712 | F14: ='Base case'!F15 -> 45549.05268 | G14: ='Base case'!G15 -> -13223.91852 | AN14: Cost of absenteeism | AO14: 25502.4 | AP14: 22952.16 | AQ14: -2550.24
D15: =Inputs!D31 -> Placeholder 1 | E15: ='Base case'!E16 -> 0 | F15: ='Base case'!F16 -> 0 | G15: ='Base case'!G16 -> 0 | AN15: Income from increased productivity | AO15: 1185660 | AP15: 1197516.6 | AQ15: -11856.6
D16: =Inputs!D35 -> Placeholder 2 | E16: ='Base case'!E17 -> 0 | F16: ='Base case'!F17 -> 0 | G16: ='Base case'!G17 -> 0 | AN16: Cost of staff turnover | AO16: 50986.10656 | AP16: 42063.53791 | AQ16: -8922.568648
D17: Intervention cost | E17: ='Base case'!E18 -> 0 | F17: ='Base case'!F18 -> 9330 | G17: ='Base case'!G18 -> 9330 | AN17: Healthcare costs | AO17: 0 | AP17: 0 | AQ17: 0
D18: Total | E18: ='Base case'!E19 -> 1694516.288 | F18: ='Base case'!F19 -> 1684773.629 | G18: ='Base case'!G19 -> -12971.49956 | AN18: Societal costs | AO18: 0 | AP18: 0 | AQ18: 0
AN19: Intervention cost | AO19: 0 | AP19: 6000 | AQ19: 6000
D20: Variable | F20: Value | AN20: Total | AO20: 1262148.507 | AP20: 1268532.298 | AQ20: -17329.40865
D21: Number of employees | F21: =Inputs!AK12 -> 30
D22: Cost of intervention | F22: =Inputs!AK14 -> 311
D23: Absenteeism: No. of days lost per person | F23: =Inputs!AK17 -> 4.78
D24: Absenteeism: Cost per day | F24: =Inputs!AK18 -> 148.6981678
D25: Absenteeism: Reduction | F25: =Inputs!AK19/100 -> 0.35
D26: Productivity: % of staff affected | F26: =Inputs!AK22/100 -> 1
D27: Productivity: Value of an employee | F27: =Inputs!AK23*100 -> 53814
D28: Productivity: Increase | F28: =Inputs!AK24/1000 -> 0.0001
D29: Staff turnover: Annual rate | F29: =Inputs!AK27/100 -> 0.136
D30: Staff turnover: Cost per case | F30: =Inputs!AK29 -> 14405.14
D31: Staff turnover: Reduction | F31: =Inputs!AK28/100 -> 0.225
D32: =CONCATENATE(Inputs!D31, ": % of staff affected") -> Placeholder 1: % of staff affected | F32: =Inputs!AK32/100 -> 0.22
D33: =CONCATENATE(Inputs!D31,": Cost per person") -> Placeholder 1: Cost per person | F33: =Inputs!AK34 -> 840.97
D34: =CONCATENATE(Inputs!D31, ": Reduction") -> Placeholder 1: Reduction | F34: =Inputs!AK33/100 -> 0.1
D35: =CONCATENATE(Inputs!D35,": % of staff affected") -> Placeholder 2: % of staff affected | F35: =Inputs!AK37/100 -> 0.05
D36: =CONCATENATE(Inputs!D35,": Cost per person") -> Placeholder 2: Cost per person | F36: =Inputs!AK39 -> 5000
D37: =CONCATENATE(Inputs!D35,": Reduction") -> Placeholder 2: Reduction | F37: =Inputs!AK38/100 -> 0.1 | AW37: Live
AU38: Death | AV38: TRUE | AW38: =IF(AV38=TRUE,E39,"") -> 0

Sheet Four-way
C4: XXXXXXXXXXX
H7: Please select category to view: | L7: Four-way SA inputs
H8: Absenteeism | L8: Cost of intervention per person | M8: 0 | N8: 200 | O8: 400 | P8: 600
H9: Productivity | M9: Low | N9: Mid | O9: High
D10: Absenteeism | H10: Staff turnover | L10: Cost of absenteeism | M10: 50 | N10: 148.6981678 | O10: 300
L11: Baseline absenteeism (days) | M11: 2 | N11: 5 | O11: 17.2
F12: Cost of intervention
F14: 1. Baseline absenteeism (days) | H14: 2. Baseline absenteeism (days) | J14: 3. Baseline absenteeism (days)
F15: =M11 -> 2 | H15: =N11 -> 5 | J15: =O11 -> 17.2 | AQ15: Before | AR15: After | AS15: Difference
AP16: Cost of absenteeism | AQ16: 25502.4 | AR16: 22952.16 | AS16: -2550.24
D17: A. Cost of absenteeism | AP17: Income from increased productivity | AQ17: 1185660 | AR17: 1197516.6 | AS17: -11856.6
D18: =M10 -> 50 | AP18: Cost of staff turnover | AQ18: 50986.10656 | AR18: 42063.53791 | AS18: -8922.568648
AP19: Healthcare costs | AQ19: 0 | AR19: 0 | AS19: 0
AP20: Societal costs | AQ20: 0 | AR20: 0 | AS20: 0
AP21: Intervention cost | AQ21: 0 | AR21: 6000 | AS21: 6000
AP22: Total | AQ22: 1262148.507 | AR22: 1268532.298 | AS22: -17329.40865
D27: B. Cost of absenteeism
D28: =N10 -> 148.6981678
D37: C. Cost of absenteeism
D38: =O10 -> 300
AY39: Live
AW40: Death | AX40: TRUE | AY40: =IF(AX40=TRUE,F41,"") -> 0

Sheet Four-way Prod
C4: XXXXXXXXXXX
H7: Please select category to view: | L7: Four-way SA inputs
H8: Absenteeism | L8: Cost of intervention per person | M8: 0 | N8: 200 | O8: 400 | P8: 600
H9: Productivity | M9: Low | N9: Mid | O9: High
D10: Productivity | H10: Staff turnover | L10: Value of employee | M10: 20000 | N10: 50000 | O10: 75000
L11: Percentage of staff affected | M11: 0.5 | N11: 0.75 | O11: 1
F12: Cost of intervention
F14: 1. Percentage affected | H14: 2. Percentage affected | J14: 3. Percentage affected
F15: =M11 -> 0.5 | H15: =N11 -> 0.75 | J15: =O11 -> 1 | AQ15: Before | AR15: After | AS15: Difference
AP16: Cost of absenteeism | AQ16: 25502.4 | AR16: 22952.16 | AS16: -2550.24
D17: A. Value of employee | AP17: Income from increased productivity | AQ17: 1185660 | AR17: 1197516.6 | AS17: -11856.6
D18: =M10 -> 20000 | AP18: Cost of staff turnover | AQ18: 50986.10656 | AR18: 42063.53791 | AS18: -8922.568648
AP19: Healthcare costs | AQ19: 0 | AR19: 0 | AS19: 0
AP20: Societal costs | AQ20: 0 | AR20: 0 | AS20: 0
AP21: Intervention cost | AQ21: 0 | AR21: 6000 | AS21: 6000
AP22: Total | AQ22: 1262148.507 | AR22: 1268532.298 | AS22: -17329.40865
D27: B. Value of employee
D28: =N10 -> 50000
D37: C. Value of employee
D38: =O10 -> 75000
AY39: Live
AW40: Death | AX40: TRUE | AY40: =IF(AX40=TRUE,F41,"") -> 0

Sheet Four-way Turnover
C4: XXXXXXXXXXX
H7: Please select category to view: | L7: Four-way SA inputs
H8: Absenteeism | L8: Cost of intervention per person | M8: 0 | N8: 200 | O8: 400 | P8: 600
H9: Productivity | M9: Low | N9: Mid | O9: High
D10: Staff turnover | H10: Staff turnover | L10: Cost per case | M10: 5000 | N10: 14500 | O10: 25000
L11: Baseline rate of turnover | M11: 0.05 | N11: 0.136 | O11: 0.5
F12: Cost of intervention
F14: 1. Baseline rate of turnover | H14: 2. Baseline rate of turnover | J14: 3. Baseline rate of turnover
F15: =M11 -> 0.05 | H15: =N11 -> 0.136 | J15: =O11 -> 0.5 | AQ15: Before | AR15: After | AS15: Difference
AP16: Cost of absenteeism | AQ16: 25502.4 | AR16: 22952.16 | AS16: -2550.24
D17: A. Cost per case | AP17: Income from increased productivity | AQ17: 1185660 | AR17: 1197516.6 | AS17: -11856.6
D18: =M10 -> 5000 | AP18: Cost of staff turnover | AQ18: 50986.10656 | AR18: 42063.53791 | AS18: -8922.568648
AP19: Healthcare costs | AQ19: 0 | AR19: 0 | AS19: 0
AP20: Societal costs | AQ20: 0 | AR20: 0 | AS20: 0
AP21: Intervention cost | AQ21: 0 | AR21: 6000 | AS21: 6000
AP22: Total | AQ22: 1262148.507 | AR22: 1268532.298 | AS22: -17329.40865
D27: B. Cost per case
D28: =N10 -> 14500
D37: C. Cost per case
D38: =O10 -> 25000
AY39: Live
AW40: Death | AX40: TRUE | AY40: =IF(AX40=TRUE,F41,"") -> 0

Sheet Sheet1
